Cogmind - Beta 11 X10 @@@ ROGUE MODE // 2022.02.12 @ 18:37:29 Player: cptwinky Result: Escaped! Performance ------------- Evolutions (9) 4500 Regions Visited (34) 6800 Robots Destroyed (473) 2365 Value Destroyed (25604) 25604 Prototype IDs (52) 1040 Alien Tech Used (4) 800 Bonus (19107) 19107 TOTAL SCORE: 60216 Bonus ------- Triggered High Security 500 High Alert Combat Kills 7715 Follower Combat Kills 4671 Entered Garrisons 1000 Used RIF Installer 2500 Entered DSFs 500 Network Hubs Disabled 200 Met Zhirov 300 A7 Reached Mainframe 300 Met R17 at Cetus 500 Read Decrypted Archives 300 Scanned by Researcher 500 Win 3000 Friendly Fire -2879 Cogmind --------- Core Integrity 514/1600 Matter 111/300 Energy 38/100 System Corruption 36% Temperature Cool (0) Movement Core (50) Location To Epsilon Eridani Parts ------- > --- POWER (2) -------- (None) > --- PROPULSION (8) --- (None) > --- UTILITY (12) ----- Advanced Heat Sink Advanced Visual Processing Unit Advanced Targeting Computer Improved Armor Integrity Analyzer Relay Coupler [NC] (23) > --- WEAPON (3) ------- (None) > --- INVENTORY (5) ---- Advanced Cloaking Device Compact HERF Cannon Advanced Datajack Advanced Remote Datajack Advanced Remote Datajack Peak State ------------ > --- POWER ------------ Quantum Reactor Light Quantum Reactor > --- PROPULSION ------- Armored Heavy Treads Biometal Heavy Treads Biometal Heavy Treads Advanced Heavy Siege Treads > --- UTILITY ---------- Advanced Heat Sink Huge Storage Unit Advanced Visual Processing Unit Advanced Targeting Computer Advanced Target Analyzer Improved Armor Integrity Analyzer Advanced Cloaking Device Improved Weapon Shielding Centrium Medium Armor Plating SHELL Armor > --- WEAPON ----------- Enhanced Nova Cannon Sigix Terminator > --- INVENTORY -------- Quantum Reactor Quantum Reactor Advanced Heavy Treads Energy Well Improved Matter Compressor Advanced Focal Shield Advanced Force Field Relay Coupler [NC] Relay Coupler [Cutter] Matter Drive Compact HERF Cannon Enhanced Nova Cannon Enhanced Nova Cannon Enhanced Nova Cannon Hypervelocity Multirail Smartbomb Launcher Fusion Bomb Launcher Advanced Remote Datajack Advanced Remote Datajack Powered Hammer [Rating: 220] Favorites ----------- Power Cold Fusion Reactor Engine Ion Engine Power Core Enhanced Nuclear Core Reactor Cold Fusion Reactor Propulsion Light Treads Treads Light Treads Leg Carbon-fiber Leg Wheel Armored Huge Wheel Hover Unit Cooled Gravmag System Utility Huge Storage Unit Device Experimental Cooling System Storage Huge Storage Unit Processor Advanced Targeting Computer Hackware Relay Coupler [NC] Protection Centrium Medium Armor Plating Artifact Matter Drive Weapon Heavy Mass Driver Energy Gun Heavy Tesla Rifle Energy Cannon Heavy Neutron Cannon Ballistic Gun Assault Rifle Ballistic Cannon Heavy Mass Driver Launcher Grenade Launcher Special Weapon Improved Remote Datajack Impact Weapon Heavy Mace Special Melee Weapon Datajack Build | -11 -10 -10 -9 -9 -9 -9 -7 -7 -7 -7 -7 -6 -6 -6 -6 -6 -6 -6 -5 -5 -5 -5 -4 -4 -4 -3 -3 -3 -3 -3 -2 -2 -1 -1 ------- Run | Scr Mat Min Mat Sto Gar Rec Fac Gar Fac Low Zio Pro Fac Ext Cet Arc Hub Gar Fac Upp Upp Zhi Pro Fac DSF Res Gar Res Qua Gar Res Tes Acc Com Slots Evolved 18 | . . . 2 . . . 4 . . . . . 2 . . . . . 2 . . . . 2 . 2 . . . . 2 . 2 . Power 1 | . . . . . . . . . . . . . . . . . . . 1 . . . . . . . . . . . . . . . Propulsion 6 | . . . 1 . . . 1 . . . . . . . . . . . 1 . . . . 1 . . . . . . 2 . . . Utility 10 | . . . 1 . . . 2 . . . . . 2 . . . . . . . . . . 1 . 2 . . . . . . 2 . Weapon 1 | . . . . . . . 1 . . . . . . . . . . . . . . . . . . . . . . . . . . . Parts Attached 446 | . 7 2 18 5 10 4 52 11 15 . 4 10 34 22 5 3 7 7 8 7 8 7 5 1 10 22 5 13 13 10 21 10 33 57 Power 27 | . . . . 1 . 1 2 2 2 . . . 1 2 . . 1 . 1 . . 2 . . . . 1 1 . . 3 1 2 4 Engine 7 | . . . . 1 . 1 1 1 . . . . 1 2 . . . . . . . . . . . . . . . . . . . . Core 6 | . . . . . . . 1 1 2 . . . . . . . . . . . . 1 . . . . . 1 . . . . . . Reactor 14 | . . . . . . . . . . . . . . . . . 1 . 1 . . 1 . . . . 1 . . . 3 1 2 4 Propulsion 56 | . 2 . 6 . 1 1 8 2 3 . 1 . 4 . 2 . . 2 . 1 1 2 1 . 1 5 . . 1 . 5 . 3 4 Treads 48 | . 2 . 6 . 1 1 8 . 3 . 1 . 2 . . . . 2 . 1 1 1 1 . . 5 . . 1 . 5 . 3 4 Leg 1 | . . . . . . . . 1 . . . . . . . . . . . . . . . . . . . . . . . . . . Wheel 6 | . . . . . . . . 1 . . . . 2 . 2 . . . . . . . . . 1 . . . . . . . . . Hover 1 | . . . . . . . . . . . . . . . . . . . . . . 1 . . . . . . . . . . . . Flight . | . . . . . . . . . . . . . . . . . . . . . . . . . . . . . . . . . . . Utility 152 | . 3 . 5 1 1 . 17 3 5 . . 3 14 8 3 . 2 4 4 1 4 2 . 1 4 9 2 6 4 4 3 2 17 20 Device 44 | . 1 . . . . . 6 . 3 . . 2 4 3 . . . . 1 . 3 . . . . 1 1 2 1 . . . 7 9 Storage 7 | . 1 . . . . . . 1 . . . . 1 . . . . 1 . . . . . . . . . . . . . . 1 2 Processor 15 | . . . 1 . . . 2 . . . . . 2 . . . . . . . . . . 1 1 2 . 1 . . . . 2 3 Hackware 35 | . . . . . . . 3 . . . . . 2 2 . . 1 . 1 1 . . . . 2 4 1 2 3 4 1 . 5 3 Protection 48 | . 1 . 4 1 1 . 6 2 2 . . 1 5 3 3 . 1 3 2 . 1 2 . . 1 2 . 1 . . 2 1 1 2 Artifact 3 | . . . . . . . . . . . . . . . . . . . . . . . . . . . . . . . . 1 1 1 Weapon 211 | . 2 2 7 3 8 2 25 4 5 . 3 7 15 12 . 3 4 1 3 5 3 1 4 . 5 8 2 6 8 6 10 7 11 29 Energy Gun 10 | . . . . . . . 1 1 1 . 1 1 5 . . . . . . . . . . . . . . . . . . . . . Energy Cannon 68 | . . . . . . . 8 . . . . 2 1 5 . 1 2 1 1 2 2 1 2 . 3 4 1 3 4 2 5 3 5 10 Ballistic Gun 9 | . 1 1 . . . . . . . . . . . . . . . . . . . . . . . . . . . . . 1 1 5 Ballistic Cannon 41 | . . . 5 2 4 1 11 1 2 . 2 2 2 . . 1 . . 2 . . . . . . 1 . 1 . . 1 . . 3 Launcher 41 | . 1 1 2 1 4 1 1 2 2 . . 2 2 1 . . . . . 3 1 . 2 . 2 2 . . . 1 1 1 2 6 Special Weapon 29 | . . . . . . . 2 . . . . . 5 1 . . 1 . . . . . . . . 1 1 2 4 3 2 2 2 3 Impact Weapon 1 | . . . . . . . . . . . . . . 1 . . . . . . . . . . . . . . . . . . . . Slashing Weapon . | . . . . . . . . . . . . . . . . . . . . . . . . . . . . . . . . . . . Piercing Weapon . | . . . . . . . . . . . . . . . . . . . . . . . . . . . . . . . . . . . Special Melee Weapon 12 | . . . . . . . 2 . . . . . . 4 . 1 1 . . . . . . . . . . . . . 1 . 1 2 Unidentified Prototypes 27 | . . . . . . . 8 . 1 . . . 5 . 1 . . 3 . . . 4 . . . . . . . . . 2 3 . Corrupted Parts 2 | . . . . . . . . . . . . . . . . . . 2 . . . . . . . . . . . . . . . . System Corruption 3 | . . . . . . . . . . . . . . . . . . 3 . . . . . . . . . . . . . . . . Parts Lost 51 | . . . . 1 1 . 1 2 . . . 2 1 . . . 1 . . . . . . . 4 3 . . 2 . 2 . 5 26 Power 6 | . . . . 1 . . . 1 . . . . . . . . . . . . . . . . . . . . . . . . . 4 Propulsion 7 | . . . . . . . . 1 . . . . . . . . . . . . . . . . . . . . . . 1 . . 5 Utility 25 | . . . . . . . 1 . . . . 1 1 . . . 1 . . . . . . . 4 2 . . 2 . 1 . 3 9 Weapon 13 | . . . . . 1 . . . . . . 1 . . . . . . . . . . . . . 1 . . . . . . 2 8 Highest Loss Streak 15 | . . . . 1 1 . 1 2 . . . 2 1 . . . 1 . . . . . . . 2 3 . . 1 . 1 . 2 15 To Critical Strikes 1 | . . . . . . . . . . . . . . . . . . . . . . . . . . . . . . . . . . 1 Average Slot Usage (%) 83 | . 96 100 95 99 100 100 99 96 83 84 78 83 81 79 80 80 79 84 76 78 81 79 82 73 68 75 79 78 76 74 73 69 70 73 Engine 3 | . 14 14 11 10 11 11 6 5 . . . . 4 6 6 6 4 . . . . . . . . . . . . . . . . . Core 1 | . . . . . . . . 1 6 7 7 7 1 . . . . . . . . 2 5 5 5 4 2 1 4 4 3 . . . Reactor 3 | . . . . . . . . . . . . . . . . . 1 6 11 11 11 8 5 5 5 4 5 7 4 4 5 8 8 7 Treads 17 | . 28 28 32 33 33 33 30 21 15 15 15 15 7 . . . . 3 11 14 17 16 17 15 15 14 14 14 14 14 17 17 16 15 Wheel 2 | . . . . . . . . 2 7 7 7 7 8 13 13 13 13 9 . . . . . . . 1 . . . . . . . . Device 6 | . . . . . . . 6 7 6 7 7 6 9 6 6 6 6 6 5 5 9 11 11 10 5 7 8 8 7 9 7 4 7 9 Storage 6 | . 14 14 11 11 11 11 7 7 7 7 7 7 6 6 6 6 6 6 5 5 5 5 5 5 5 4 4 4 4 4 4 4 4 5 Processor 8 | . . . 3 11 11 11 13 14 7 7 7 7 10 13 13 13 9 6 5 5 5 5 5 5 5 8 10 12 14 14 13 8 7 11 Hackware 4 | . . . . . . . . . . . . . 1 1 . . 3 6 5 4 5 5 5 5 2 12 17 13 15 12 10 13 14 3 Protection 9 | . 9 14 14 11 11 11 8 6 7 7 7 7 8 10 13 13 11 18 17 17 12 8 11 10 11 5 4 4 . . 3 3 4 7 Energy Gun 1 | . . . . . . . . 7 6 7 5 4 4 . . . . . . . . . . . . . . . . . . . . . Energy Cannon 3 | . . . . . . . 4 . . . . 4 1 3 6 6 4 6 5 4 4 5 4 5 4 3 2 3 3 3 3 3 3 7 Ballistic Gun 1 | . 28 27 . . . . . . . . . . . . . . . . . . . . . . . . . . . . . . . . Ballistic Cannon 9 | . . . 21 21 19 15 16 14 14 15 11 11 13 14 13 13 13 13 5 5 5 5 5 5 5 3 4 4 4 4 3 4 3 2 Naked Turns . | . . . . . . . . . . . . . . . . . . . . . . . . . . . . . . . . . . . Heaviest Build 214 | 14 29 29 43 40 40 38 58 123 123 121 121 129 132 154 154 141 141 138 160 160 157 160 160 160 162 162 153 174 174 159 179 182 212 214 Greatest Support 295 | 20 40 40 60 60 60 60 88 88 40 28 28 28 56 56 56 56 56 160 160 183 190 190 190 187 187 235 220 220 220 220 290 250 275 295 Greatest Overweight (x) 4 | . . . 1 . . . . 4 4 4 4 4 4 2 2 2 2 2 . . . . . . . . . . . . . . . . Average Overweight (x) . | . . . . . . . . 1 3 4 3 4 3 2 2 2 2 1 . . . . . . . . . . . . . . . . Largest Inventory Capacity 25 | 8 15 15 15 15 15 15 15 25 25 25 25 25 25 25 25 25 25 25 25 25 25 25 25 25 25 25 25 25 25 25 25 25 25 25 Average Capacity 22 | 8 11 15 15 15 15 15 15 18 25 25 25 25 25 25 25 25 25 25 25 25 25 25 25 25 25 25 25 25 25 25 25 25 25 24 Most Carried 25 | 6 11 12 15 15 15 15 15 25 25 25 25 25 25 25 25 25 25 25 25 25 25 25 25 25 25 25 25 25 25 25 25 25 25 25 Average Carried 21 | 6 8 11 14 14 14 14 14 17 24 25 24 24 24 24 24 24 24 24 24 24 24 24 24 24 24 24 24 23 24 22 24 24 24 21 Final Capacity 25 | 8 15 15 15 15 15 15 15 25 25 25 25 25 25 25 25 25 25 25 25 25 25 25 25 25 25 25 25 25 25 25 25 25 25 5 Final Carried 25 | 6 11 12 15 14 15 15 15 24 25 25 25 25 24 24 25 25 25 25 25 25 25 25 25 24 25 24 25 25 24 25 24 25 25 5 Class Distribution -------------------- 26% | Bothacker-Gunner 20% | Bothacker-Tank 16% | Bothacker-Mutant 13% | Mutant 7% | Gunner 3% | Scavenger-Mutant 3% | Scavenger-Gunner Dominant Class ---------------- Mutant | -10/Materials Mutant | -10/Mines Mutant | -9/Materials Mutant | -9/Storage Mutant | -9/Garrison Bothacker-Mutant | -9/Recycling Gunner | -7/Factory Gunner | -7/Garrison Bothacker-Gunner | -7/Factory Bothacker-Gunner | -7/Lower Caves Bothacker-Gunner | -7/Zion Bothacker-Gunner | -6/Proximity Caves Bothacker-Gunner | -6/Factory Bothacker-Gunner | -6/Extension Commander-Gunner | -6/Cetus Commander-Mutant | -6/Archives Bothacker-Tank | -6/Hub_04(d) Bothacker-Tank | -6/Garrison Bothacker-Tank | -5/Factory Bothacker-Tank | -5/Upper Caves Bothacker-Tank | -5/Upper Caves Bothacker-Mutant | -5/Zhirov Bothacker-Tank | -4/Proximity Caves Bothacker-Tank | -4/Factory Bothacker-Mutant | -4/DSF Bothacker-Gunner | -3/Research Bothacker-Mutant | -3/Garrison Botlord-Gunner | -3/Research Bothacker-Gunner | -3/Quarantine Scavenger-Gunner | -3/Garrison Bothacker-Gunner | -2/Research Bothacker-Gunner | -2/Testing Bothacker-Gunner | -1/Access Scavenger-Gunner | -1/Command Resources | -11 -10 -10 -9 -9 -9 -9 -7 -7 -7 -7 -7 -6 -6 -6 -6 -6 -6 -6 -5 -5 -5 -5 -4 -4 -4 -3 -3 -3 -3 -3 -2 -2 -1 -1 ----------- Run | Scr Mat Min Mat Sto Gar Rec Fac Gar Fac Low Zio Pro Fac Ext Cet Arc Hub Gar Fac Upp Upp Zhi Pro Fac DSF Res Gar Res Qua Gar Res Tes Acc Com Matter Collected 14389 | 200 276 139 506 252 452 120 851 367 1342 18 . 269 545 1008 176 18 149 362 289 286 148 60 209 . 384 457 239 438 371 801 417 556 844 1840 Remotely . | . . . . . . . . . . . . . . . . . . . . . . . . . . . . . . . . . . . Salvage Created 17284 | . 245 131 562 318 252 1 725 409 1494 . . 303 414 395 46 9 130 287 639 520 245 117 221 . 467 1066 . 522 422 455 393 855 1949 3692 Parts 726 | . 16 2 33 22 22 2 32 20 88 . . 11 18 10 . 2 5 18 41 14 15 1 10 . 12 39 . 24 12 22 17 27 79 112 Haulers Intercepted 12 | . 1 . 3 . . . 1 . 4 . . . . . . . 1 . . . . . . . . 2 . . . . . . . . Recyclers Shooed 11 | . . . . . . 1 . . 3 . . . . . . . . . 1 . . . . . . 2 . . . . . 1 . 3 Parts Field Recycled . | . . . . . . . . . . . . . . . . . . . . . . . . . . . . . . . . . . . Retrieved Matter . | . . . . . . . . . . . . . . . . . . . . . . . . . . . . . . . . . . . Parts Self-Destructed 56 | . . . . . . . . . . . . 12 . . . . . . . 33 6 1 4 . . . . . . . . . . . Prevented 2 | . . . . . . . . . . . . 2 . . . . . . . . . . . . . . . . . . . . . . Kills | -11 -10 -10 -9 -9 -9 -9 -7 -7 -7 -7 -7 -6 -6 -6 -6 -6 -6 -6 -5 -5 -5 -5 -4 -4 -4 -3 -3 -3 -3 -3 -2 -2 -1 -1 ------- Run | Scr Mat Min Mat Sto Gar Rec Fac Gar Fac Low Zio Pro Fac Ext Cet Arc Hub Gar Fac Upp Upp Zhi Pro Fac DSF Res Gar Res Qua Gar Res Tes Acc Com Combat Hostiles Destroyed 400 | . 7 3 16 10 19 3 16 12 34 . . 9 11 14 1 . 1 9 14 9 5 . 9 . 11 15 . 9 9 13 11 12 26 92 Melee 1 | . . . . . . . . . . . . . . . . . . . . . . . . . . . . . . . . 1 . . Guns 29 | . 4 . . . . . . 6 5 . . 2 1 . . . . . . . . . . . . . . . . . . . 1 10 Cannons 202 | . . . 11 10 3 1 12 1 16 . . 2 5 10 1 . 1 9 10 8 1 . 3 . 5 7 . 8 9 7 8 9 18 27 AOE 157 | . 3 3 5 . 16 2 3 4 13 . . 5 5 4 . . . . 4 1 4 . 6 . 6 8 . 1 . 6 3 . 4 51 Classes Destroyed 28 | . 4 . 2 1 . 1 3 1 3 . . 1 2 . . . 1 . 1 . 1 . . . . . . . 2 . . . 1 4 Worker 22 | . . . . . . . 3 . 6 . . . . . . . 1 . 2 . . . . . . 1 . 2 . . . . 1 6 Builder 12 | . . . . . . . . . 4 . . . 1 . . . . . 2 . . . . . . 3 . . . . . . 2 . Tunneler 1 | . . . . . . . . . . . . . 1 . . . . . . . . . . . . . . . . . . . . . Hauler 12 | . 1 . 3 . . . 1 . 4 . . . . . . . 1 . . . . . . . . 2 . . . . . . . . Recycler 12 | . . . . . . . 2 . 2 . . . . 1 . . . . . . . . . . . 3 . . . . . 1 . 3 Carrier 1 | . . . . . . . . . . . . . . . . . . . . . . . . . . . . . . . . . 1 . Mechanic 6 | . . . . . . . . . . . . . . . . . . . 1 . . . . . . . . . . . . . . 5 Operator 2 | . . . . . . . . . 1 . . . . . . . . . . . . . . . . . . . . . . . . 1 Drone 3 | . . . . . . 3 . . . . . . . . . . . . . . . . . . . . . . . . . . . . Watcher 8 | . 1 . . 1 . . . 1 . . . . . . . . . . . . . . . . . 1 . . . . . 1 1 2 Swarmer 72 | . 3 3 4 . 11 . . 6 9 . . 6 . 4 . . . . 2 2 4 . 4 . . 5 . . . 5 4 . . . Saboteur 1 | . . . . . . . . . . . . . . . . . . . . . . . . . . . . . . . . . . 1 Grunt 154 | . 4 . 5 6 7 . 10 . 15 . . 2 3 1 1 . . 5 8 5 1 . 4 . 4 4 . 6 6 6 2 8 10 31 Brawler 9 | . . . 1 . . . . . . . . . . . . . . 1 . 1 . . . . . . . . 1 1 . . . 4 Duelist 15 | . . . . 1 . . . 2 . . . . . . . . . . 1 . . . . . . . . . 1 . . . 1 9 Protector 6 | . . . . . . . . . . . . . . . . . . . . . . . . . . . . . . . . . . 6 Researcher 2 | . . . . . . . . . . . . . . . . . . . . . . . . . . . . . 1 . . 1 . . Sentry 36 | . . . 6 3 1 . 4 1 4 . . . . 8 . . . . . 1 . . 1 . . 1 . 1 . . 1 . 2 2 Demolisher 2 | . . . . . . . . . 2 . . . . . . . . . . . . . . . . . . . . . . . . . Specialist 6 | . . . . . . . . . . . . . 2 . . . . . . . . . . . 3 . . . . . . . . 1 Hunter 29 | . . . . . . . . 3 1 . . . 4 . . . . 1 1 1 . . . . 2 1 . . . . . 3 8 4 Programmer 46 | . . . . . . . 2 . 3 . . . 2 . . . . 2 2 . . . . . 1 3 . 2 . 1 3 1 5 19 Heavy 3 | . . . . . . . . . . . . . . . . . 1 . . . . . . . 1 . . . . . 1 . . . Behemoth 5 | . . . . . . . . . . . . 1 . 1 . . . . . . . . . . . 1 . . . . . . . 2 Investigator 1 | . . . . . . . . . . . . . . . . . . . . . . . . . . . . . . . . . . 1 Striker 6 | . . . . . . . . . . . . . . . . . . . . . . . . . . . . . . . . . . 6 Executioner 5 | . . . . . . . . . . . . . . . . . . . . . . . . . . . . . . . . . . 5 Alpha 7 3 | . . . . . . . . . . . . . . . . . . . . . . . . . . . . . 1 . . . . 2 Guerrilla 1 | . . . . . . . . . . . . . . . . . 1 . . . . . . . . . . . . . . . . . Mutant 1 | . . . . . . . . . . . . . . . . . . . . . 1 . . . . . . . . . . . . . Commander 1 | . . . . . . . . . . . . . . . . . . . . . 1 . . . . . . . . . . . . . Best Kill Streak 31 | . 3 3 8 4 8 2 3 3 7 . . 3 8 5 1 . 2 4 6 4 4 . 4 . 5 6 . 4 3 5 4 5 7 31 Combat Bots Only 17 | . 3 3 8 4 8 2 3 3 5 . . 3 7 5 1 . 1 4 4 4 4 . 4 . 5 5 . 3 3 5 4 3 5 17 Max Kills in Single Turn 10 | . 2 3 3 1 3 1 3 1 6 . . 3 4 4 1 . 2 2 6 1 4 . 2 . 3 3 . 1 1 2 3 1 3 10 Gunslinging . | . . . . . . . . . . . . . . . . . . . . . . . . . . . . . . . . . . . Exploded 10 | . 2 3 3 . 3 1 3 1 3 . . 3 4 4 . . . . 4 1 4 . 2 . 3 3 . 1 . 2 3 . 3 10 Melee 1 | . . . . . . . . . . . . . . . . . . . . . . . . . . . . . . . . 1 . . Uniques/NPCs Destroyed 1 | . . 1 . . . . . . . . . . . . . . . . . . . . . . . . . . . . . . . . YI-UF0 (-10/Mines) Combat | -11 -10 -10 -9 -9 -9 -9 -7 -7 -7 -7 -7 -6 -6 -6 -6 -6 -6 -6 -5 -5 -5 -5 -4 -4 -4 -3 -3 -3 -3 -3 -2 -2 -1 -1 -------- Run | Scr Mat Min Mat Sto Gar Rec Fac Gar Fac Low Zio Pro Fac Ext Cet Arc Hub Gar Fac Upp Upp Zhi Pro Fac DSF Res Gar Res Qua Gar Res Tes Acc Com Damage Taken 33054 | . 191 32 350 341 252 60 1154 501 1136 . . 517 754 500 32 . 417 305 652 273 99 . 253 . 1110 1400 98 675 1618 1099 1473 2369 3339 12054 Core 2057 | . 37 . 44 43 50 . 50 36 160 . . 25 61 40 . . 5 61 31 20 . . . . 37 126 . 66 18 40 63 93 35 916 Absorbed by Shields 2300 | . . . . . 12 . . 20 . . . . 101 64 18 . . 20 . . . . 92 . 304 . . . . . . . 1022 647 Reduced by Siege Mode 504 | . . . . . . . . . . . . . . . . . . . . . . . 13 . 62 18 . . 135 . . . 129 147 Redirected to Shielding 148 | . 3 9 19 . . . . . . . . . . 14 . . . . . . . . . . . . . . . . . . . 103 Regen/Repaired (Parts) 6700 | . . . 82 96 . . 101 . 105 . . . 279 292 . . . . . . . . . . . . . . 295 . 850 823 1004 2773 Core Remaining (%) 78 | 100 . 85 . . . 65 . . . . . 61 . . . . . 80 . . . . 94 . 96 . . . . 80 . 89 . 32 Volleys Fired 1033 | . 19 22 34 29 31 12 62 32 70 . 1 23 29 37 6 4 10 20 23 20 31 3 20 . 44 45 9 35 46 31 24 42 71 148 Largest 3 | . 2 2 2 2 2 2 3 3 3 . 1 3 3 3 3 1 3 3 2 2 2 1 2 . 2 2 1 2 2 2 2 2 2 3 Hottest 301 | . 40 40 78 78 78 78 176 178 178 . 70 240 218 230 230 60 230 230 185 185 165 110 185 . 185 185 110 185 185 185 188 188 188 301 Shots Fired 1851 | . 36 43 61 57 40 14 145 44 161 . 1 50 51 88 15 4 18 56 42 37 35 3 24 . 51 70 9 59 67 50 42 77 117 284 Gun 213 | . 34 42 . . . . 3 27 50 . 1 20 8 . . . . . . . . . . . . . . . . . . . 4 24 Cannon 1456 | . . . 57 56 25 10 133 12 104 . . 28 30 82 15 4 17 56 42 35 34 3 18 . 42 62 2 56 54 40 39 73 106 221 Launcher 116 | . 2 1 4 1 15 4 2 5 7 . . 2 3 1 . . . . . 2 1 . 6 . 9 7 . . . 3 1 1 2 37 Special 66 | . . . . . . . 7 . . . . . 10 5 . . 1 . . . . . . . . 1 7 3 13 7 2 3 5 2 Kinetic 957 | . 34 42 57 56 25 10 103 12 104 . . 16 22 66 12 4 8 36 19 17 4 . 5 . 10 25 . 28 28 19 18 37 50 90 Thermal 600 | . . . . . . . 30 . . . . 12 16 16 3 . 9 20 23 18 30 3 13 . 32 37 2 28 26 21 21 36 60 144 Explosive 115 | . 2 1 4 1 15 4 2 5 7 . . 2 3 1 . . . . . 2 1 . 6 . 9 7 . . . 3 1 1 2 36 Electromagnetic 113 | . . . . . . . 3 27 50 . 1 20 . . . . . . . . . . . . . . . . . . . . . 12 Robot Hit Streak 31 | . 8 11 11 19 26 3 31 11 17 . . 10 5 16 9 3 8 7 6 11 11 4 12 . 14 17 7 16 26 16 11 14 19 22 Robot Miss Streak 5 | . 3 4 3 2 2 4 4 2 3 . . 5 3 2 3 1 1 5 3 4 1 . 1 . 1 2 . 3 2 3 1 5 3 4 Penetration Max 3 | . . . . . . . . . . . . . . . . . . . . . . . . . . 1 . . . . . 1 . 3 Secondary Targets . | . . . . . . . . . . . . . . . . . . . . . . . . . . . . . . . . . . . Shots Hit Robots 1191 | . 20 31 38 38 20 5 107 28 92 . . 24 27 95 10 3 10 26 23 26 16 2 12 . 19 53 7 39 53 33 27 52 69 186 Core Hits 904 | . 15 9 24 15 29 6 43 18 76 . . 19 25 27 5 2 9 16 21 15 10 . 14 . 38 42 . 15 18 21 16 19 46 291 Critical Kills 21 | . . . . . . . 1 . . . . . 1 . . . . . . . . 1 . . . . . . . . . 2 5 11 Critical Parts Destroyed 15 | . . . . . . . . . . . . . . . . . . . . . . . . . . . . . . . . . 3 12 Critical Strikes 95 | . . . 2 3 . . 4 1 7 . . 2 2 2 1 . . 1 . 1 . 1 1 . 1 2 . 4 4 4 1 10 10 31 Burn 1 | . . . . . . . . . . . . . 1 . . . . . . . . . . . . . . . . . . . . . Meltdown 11 | . . . . . . . 1 . . . . . . . . . . . . . . 1 . . . . . . . . . 2 4 3 Destroy 25 | . . . . . . . . . . . . . 1 . . . . . . . . . . . . . . . . . . . 4 20 Blast 57 | . . . 2 3 . . 3 1 7 . . 1 . 2 1 . . 1 . 1 . . 1 . 1 2 . 4 4 4 1 8 2 8 Corrupt 1 | . . . . . . . . . . . . 1 . . . . . . . . . . . . . . . . . . . . . . Melee Attacks 68 | . . . . . . . . . . . . . . 66 . . . . . . . . . . . . . . . . 2 . . . Impact 35 | . . . . . . . . . . . . . . 35 . . . . . . . . . . . . . . . . . . . . Slashing . | . . . . . . . . . . . . . . . . . . . . . . . . . . . . . . . . . . . Piercing . | . . . . . . . . . . . . . . . . . . . . . . . . . . . . . . . . . . . Sneak Attacks 31 | . . . . . . . . . . . . . . 31 . . . . . . . . . . . . . . . . . . . . Combat Hostiles . | . . . . . . . . . . . . . . . . . . . . . . . . . . . . . . . . . . . Follow-up Attacks . | . . . . . . . . . . . . . . . . . . . . . . . . . . . . . . . . . . . Damage Inflicted 81723 | . 449 555 1150 908 1348 257 2641 1346 4705 . . 1184 1289 2861 455 107 602 1026 2348 1646 893 88 1355 . 2381 3845 . 2272 2291 2156 1733 2973 4314 32545 Guns 2945 | . 245 347 . . . . 94 548 1014 . . 238 112 . . . . . . . . . . . . . . . . . . . 22 325 Cannons 39150 | . . . 789 896 284 105 2313 229 1903 . . 614 495 2473 455 107 374 1026 1595 1368 608 88 501 . 780 2652 . 1968 2121 1390 1432 2697 3298 6589 Explosions 39245 | . 182 196 352 . 1064 128 210 569 1788 . . 332 682 388 . . 176 . 753 278 285 . 854 . 1601 1193 . 304 170 766 281 233 885 25575 Melee . | . . . . . . . . . . . . . . . . . . . . . . . . . . . . . . . . . . . Ramming 383 | . 22 12 9 12 . 24 24 . . . . . . . . . 52 . . . . . . . . . . . . . 20 43 109 56 Kinetic 24575 | . 245 347 789 896 284 105 1791 229 1903 . . 295 368 1876 328 107 248 675 1040 870 158 . 332 . 620 1327 . 1220 1409 756 864 1834 1785 1874 Thermal 28054 | . . 73 . . . . 522 149 696 . . 376 239 771 127 . 302 351 1173 498 450 88 169 . 160 1325 . 1052 882 790 568 863 1535 14895 Explosive 26356 | . 182 123 352 . 1064 128 210 420 860 . . 275 682 214 . . . . 104 278 285 . 854 . 1601 1193 . . . 610 281 233 885 15522 Electromagnetic 2355 | . . . . . . . 94 548 1246 . . 238 . . . . . . 31 . . . . . . . . . . . . . . 198 Impact . | . . . . . . . . . . . . . . . . . . . . . . . . . . . . . . . . . . . Slashing . | . . . . . . . . . . . . . . . . . . . . . . . . . . . . . . . . . . . Piercing . | . . . . . . . . . . . . . . . . . . . . . . . . . . . . . . . . . . . Highest Corruption 36 | . . . . . . . 3 3 4 4 4 . . 5 . . 3 6 . . . . . . . . . . . . . . . 36 Average Corruption 5 | . . . . . . . 1 3 3 4 4 . . 4 . . 2 3 . . . . . . . . . . . . . . . 16 Corruption Purged 5 | . . . . . . . . . . . . . . 5 . . . . . . . . . . . . . . . . . . . . Corruption Blocked 21 | . . . . . . . . . . . . . . . . . . . . . . . . . . 2 . 1 16 . 2 . . . Effects 160 | . . . . . . . 17 17 41 . . . . 10 . . 4 9 . . . . . . . . . . . . . . . 62 Message Errors 28 | . . . . . . . 4 2 4 . . . . 3 . . . 4 . . . . . . . . . . . . . . . 11 Matter Fused 43 | . . . . . . . 5 7 14 . . . . 1 . . 2 2 . . . . . . . . . . . . . . . 12 Heat Flow Errors 22 | . . . . . . . 1 3 6 . . . . 1 . . . 3 . . . . . . . . . . . . . . . 8 Energy Discharges 14 | . . . . . . . . 3 4 . . . . 1 . . . . . . . . . . . . . . . . . . . 6 Parts Rejected 2 | . . . . . . . 1 . . . . . . . . . . . . . . . . . . . . . . . . . . 1 Data Loss (minor) 22 | . . . . . . . 2 1 9 . . . . 2 . . . . . . . . . . . . . . . . . . . 8 Data Loss (major) 8 | . . . . . . . 2 1 2 . . . . . . . . . . . . . . . . . . . . . . . . 3 Misfires 5 | . . . . . . . 1 . 1 . . . . . . . 1 . . . . . . . . . . . . . . . . 2 Alerts 3 | . . . . . . . 1 . . . . . . 1 . . . . . . . . . . . . . . . . . . . 1 Misdirections 2 | . . . . . . . . . . . . . . . . . . . . . . . . . . . . . . . . . . 2 Weapon Failures 11 | . . . . . . . . . 1 . . . . 1 . . 1 . . . . . . . . . . . . . . . . 8 Overload Shots . | . . . . . . . . . . . . . . . . . . . . . . . . . . . . . . . . . . . Overflow Damage 3318 | . 4 25 27 3 15 17 12 40 138 . . 20 38 19 . . . 9 185 63 62 . 16 . . 205 . 209 44 125 182 205 128 1527 Projectiles 1787 | . . . 27 3 . 17 12 18 41 . . 17 37 19 . . . 9 170 34 62 . . . . 175 . 202 44 113 169 154 121 343 Explosions 1531 | . 4 25 . . 15 . . 22 97 . . 3 1 . . . . . 15 29 . . 16 . . 30 . 7 . 12 13 51 7 1184 Melee . | . . . . . . . . . . . . . . . . . . . . . . . . . . . . . . . . . . . Knockbacks 141 | . . . 3 5 1 4 5 1 15 . . . 2 5 1 2 3 7 5 2 . . . . 2 6 . 6 9 2 5 21 11 18 Impact 4 | . . . . . . . . . . . . . . . . . 1 . . . . . . . . . . . . . . 1 1 1 Kinetic 126 | . . . 3 5 1 4 5 1 13 . . . 2 4 1 2 1 7 4 2 . . . . 2 6 . 6 8 2 5 17 9 16 Secondary 11 | . . . . . . . . . 2 . . . . 1 . . 1 . 1 . . . . . . . . . 1 . . 3 1 1 Self-Inflicted Damage 958 | . 8 32 . 16 49 61 24 49 246 . . . . . . . 70 . 31 . . . . . 15 . . . 81 18 37 . 8 213 Shots 31 | . 1 2 . 1 3 2 1 1 7 . . . . . . . 1 . 1 . . . . . 1 . . . 1 1 1 . 1 6 Rammed 41 | . 5 1 2 4 . 9 4 . . . . . . . . . 3 . . . . . . . . . . . . . 2 1 3 7 Targets Rammed 46 | . 5 1 2 4 . 9 5 . . . . . . . . . 3 . . . . . . . . . . . . . 2 3 5 7 Kicked . | . . . . . . . . . . . . . . . . . . . . . . . . . . . . . . . . . . . Crushed 5 | . . . . . . . 1 . . . . . . . . . . . . . . . . . . . . . . . . 2 2 . Highest Temperature 493 | . 6 7 147 132 98 42 321 195 233 . . 285 81 309 180 . 63 250 10 1 . . . . 160 . . 20 . 24 158 354 192 493 Average Temperature 84 | . 2 4 44 38 34 22 86 88 37 . . 113 16 62 92 . 24 49 2 1 . . . . 51 . . 20 . 16 63 119 65 159 Received Heat Transfer 4021 | . 78 . 135 114 31 . 279 12 309 . . 105 72 146 . . 36 116 150 108 18 . 59 . 170 100 12 132 320 183 45 360 188 743 Effects 7 | . . . . . . . 1 . . . . . . . . . . . . . . . . . . . . . . . . 3 . 3 Shutdowns 2 | . . . . . . . . . . . . . . . . . . . . . . . . . . . . . . . . . . 2 Energy Bleed 1 | . . . . . . . 1 . . . . . . . . . . . . . . . . . . . . . . . . . . . Interference 4 | . . . . . . . . . . . . . . . . . . . . . . . . . . . . . . . . 3 . 1 Siege Activations 14 | . . . . . . . . . . . . . . . . . . . . . . . 1 . 1 1 . 1 1 . 1 . 4 4 Total Turns 353 | . . . . . . . . . . . . . . . . . . . . . . . 41 . 29 99 . 2 34 . 10 . 64 74 Longest Duration 99 | . . . . . . . . . . . . . . . . . . . . . . . 41 . 29 99 . 2 34 . 10 . 23 26 Robots Corrupted 2 | . . . . . . . . 1 . . . . . . . . . . . . . . . . . . . . . . . . . 1 Combat Hostiles 2 | . . . . . . . . 1 . . . . . . . . . . . . . . . . . . . . . . . . . 1 Parts Fried 15 | . . . . . . . 1 5 4 . . 1 . . . . . . . . . . . . . . . . . . . . . 4 Impact Corruptions 1 | . . . . . . . . . . . . . . . . . . . . . . . . . . . . . . . . . 1 . Robots Melted 11 | . . . . . . . 1 . . . . . . . . . . . . . . 1 . . . . . . . . . 2 4 3 Combat Hostiles 10 | . . . . . . . 1 . . . . . . . . . . . . . . 1 . . . . . . . . . 2 3 3 Parts Melted 17 | . . . . . . . . . 1 . . . . . . . . . . . . . . . . . . . . . . . 10 6 Heat Transferred 10340 | . . 100 . . . . 871 150 500 . . 50 205 150 . . 150 . 350 296 481 74 . . . . . 200 100 100 148 777 1406 4232 Parts Sabotaged . | . . . . . . . . . . . . . . . . . . . . . . . . . . . . . . . . . . . Parts Stolen . | . . . . . . . . . . . . . . . . . . . . . . . . . . . . . . . . . . . Parts Stripped . | . . . . . . . . . . . . . . . . . . . . . . . . . . . . . . . . . . . Power Chain Reactions 8 | . . . . . . . . 2 . . . 1 . 1 . . 1 . . . . . . . . . . 1 1 1 . . . . Missiles Intercepted . | . . . . . . . . . . . . . . . . . . . . . . . . . . . . . . . . . . . Alert | -11 -10 -10 -9 -9 -9 -9 -7 -7 -7 -7 -7 -6 -6 -6 -6 -6 -6 -6 -5 -5 -5 -5 -4 -4 -4 -3 -3 -3 -3 -3 -2 -2 -1 -1 ------- Run | Scr Mat Min Mat Sto Gar Rec Fac Gar Fac Low Zio Pro Fac Ext Cet Arc Hub Gar Fac Upp Upp Zhi Pro Fac DSF Res Gar Res Qua Gar Res Tes Acc Com Peak Influence 3390 | . 248 148 360 257 604 457 1114 759 1309 . . . 305 686 744 604 760 1097 1262 . . . . 5 400 613 696 588 628 605 548 714 741 3390 Initial 1091 | . . 18 . 70 144 271 1091 311 398 . . . . 77 152 297 211 524 575 . . . . . 3 225 378 391 279 24 339 285 336 87 Average 426 | . 96 55 249 136 417 326 375 596 520 . . . 131 208 420 395 400 930 940 . . . . . 272 365 544 388 314 347 404 457 349 1071 Maximum Alert Level 5 | . 1 . 1 1 2 2 4 3 4 . . . 1 2 3 2 3 3 4 . . . . . 2 2 2 2 2 2 2 3 3 5 Low Security (%) 26 | 100 73 100 25 88 6 . 23 . 6 . . . 76 49 11 . . . . . . . . 100 16 . . 8 41 31 . . 34 15 Level 1 35 | . 26 . 74 11 30 91 47 9 47 . . . 23 43 46 69 58 . . . . . . . 67 64 25 46 21 12 62 49 23 12 Level 2 27 | . . . . . 62 8 16 76 17 . . . . 6 39 30 22 15 32 . . . . . 15 35 74 45 37 55 37 47 35 44 Level 3 6 | . . . . . . . 9 14 18 . . . . . 2 . 19 84 37 . . . . . . . . . . . . 3 6 . Level 4 1 | . . . . . . . 2 . 8 . . . . . . . . . 29 . . . . . . . . . . . . . . . Level 5 . | . . . . . . . . . . . . . . . . . . . . . . . . . . . . . . . . . . 3 High Security 1 | . . . . . . . . . . . . . . . . . . . . . . . . . . . . . . . . . . 24 Max Security . | . . . . . . . . . . . . . . . . . . . . . . . . . . . . . . . . . . . Sterilizations 1 | . . . . . . . . . . . . . . . . . . . . . . . . . 1 . . . . . . . . . Squads Dispatched 98 | . 3 . 1 4 . . 9 . 9 . . . 3 3 . . 5 . 6 . . . . . 2 6 . 4 4 . 5 4 7 23 Investigation 23 | . 1 . . . . . 3 . 3 . . . . 1 . . 1 . 3 . . . . . . 2 . 2 3 . 1 . 1 2 Extermination 16 | . . . . . . . 3 . 3 . . . 1 . . . . . . . . . . . . 2 . 1 . . 2 . 2 2 Reinforcement 30 | . 2 . 1 1 . . 2 . . . . . 2 2 . . 3 . 1 . . . . . 2 1 . 1 . . 2 4 3 3 Assault 23 | . . . . . . . 1 . 2 . . . . . . . . . 1 . . . . . . 1 . . 1 . . . 1 16 Garrison 6 | . . . . 3 . . . . 1 . . . . . . . 1 . 1 . . . . . . . . . . . . . . . Intercept . | . . . . . . . . . . . . . . . . . . . . . . . . . . . . . . . . . . . Construction Impeded 6 | . . . . . . . . . . . . . 1 1 . . . . 1 . . . . . . 1 . . . . . 1 1 . Haulers Reinforced . | . . . . . . . . . . . . . . . . . . . . . . . . . . . . . . . . . . . Active Scanning Responses . | . . . . . . . . . . . . . . . . . . . . . . . . . . . . . . . . . . . Cargo Convoy Interrupts 2 | . . . . . . . 1 . . . . . 1 . . . . . . . . . . . . . . . . . . . . . Stealth | -11 -10 -10 -9 -9 -9 -9 -7 -7 -7 -7 -7 -6 -6 -6 -6 -6 -6 -6 -5 -5 -5 -5 -4 -4 -4 -3 -3 -3 -3 -3 -2 -2 -1 -1 --------- Run | Scr Mat Min Mat Sto Gar Rec Fac Gar Fac Low Zio Pro Fac Ext Cet Arc Hub Gar Fac Upp Upp Zhi Pro Fac DSF Res Gar Res Qua Gar Res Tes Acc Com Distress Signals 33 | . . . 1 4 . . 5 . 4 . . . 2 5 2 . 1 . 2 . . . . . . . . . 1 . 1 1 3 1 Communications Jammed . | . . . . . . . . . . . . . . . . . . . . . . . . . . . . . . . . . . . Distress Signals . | . . . . . . . . . . . . . . . . . . . . . . . . . . . . . . . . . . . Times Spotted 706 | . 11 2 19 20 19 18 36 13 41 . . 10 26 29 14 . 21 16 24 18 7 . 9 . 9 18 17 27 20 25 29 25 46 137 Peak Tracking Total 16 | . 3 3 5 6 5 3 4 4 6 . . 3 11 4 7 . 10 7 5 4 4 . 4 . 4 5 9 4 5 7 7 5 8 16 Tactical Retreats 23 | . . . . 2 . . 2 3 4 . . 1 . 1 . . . 1 1 . . . . . . . . . . 2 2 1 3 . Traps | -11 -10 -10 -9 -9 -9 -9 -7 -7 -7 -7 -7 -6 -6 -6 -6 -6 -6 -6 -5 -5 -5 -5 -4 -4 -4 -3 -3 -3 -3 -3 -2 -2 -1 -1 ------- Run | Scr Mat Min Mat Sto Gar Rec Fac Gar Fac Low Zio Pro Fac Ext Cet Arc Hub Gar Fac Upp Upp Zhi Pro Fac DSF Res Gar Res Qua Gar Res Tes Acc Com Traps Triggered 27 | . . . 3 . 2 . 4 3 3 . . . . 3 . . . 3 . . . . . . . 2 . 1 . . 1 . 1 1 Indirectly 2 | . . . . . . . . . 2 . . . . . . . . . . . . . . . . . . . . . . . . . Trap Hack Attempts 125 | . . . . . . . 57 . . . . . . . . . 34 . . . . . . . . . . . . . . . 10 24 Triggered 1 | . . . . . . . . . . . . . . . . . . . . . . . . . . . . . . . . . . 1 Disarmed 4 | . . . . . . . 2 . . . . . . . . . . . . . . . . . . . . . . . . . . 2 Reprogrammed 15 | . . . . . . . 5 . . . . . . . . . 5 . . . . . . . . . . . . . . . 2 3 Reused 5 | . . . . . . . 1 . . . . . . . . . 2 . . . . . . . . . . . . . . . 1 1 Traps Extracted . | . . . . . . . . . . . . . . . . . . . . . . . . . . . . . . . . . . . Installed . | . . . . . . . . . . . . . . . . . . . . . . . . . . . . . . . . . . . Triggered 12 | . . . . . . . 2 . 1 . . 2 . . . . 2 . . . . . . . . . . . . . . 3 1 1 Machines | -11 -10 -10 -9 -9 -9 -9 -7 -7 -7 -7 -7 -6 -6 -6 -6 -6 -6 -6 -5 -5 -5 -5 -4 -4 -4 -3 -3 -3 -3 -3 -2 -2 -1 -1 ---------- Run | Scr Mat Min Mat Sto Gar Rec Fac Gar Fac Low Zio Pro Fac Ext Cet Arc Hub Gar Fac Upp Upp Zhi Pro Fac DSF Res Gar Res Qua Gar Res Tes Acc Com Machines Disabled 82 | . . 4 . . 1 . 2 3 18 . . . 7 5 1 2 . 3 9 . 1 1 . . 1 2 2 1 3 2 1 3 1 9 Max in Single Turn 8 | . . 4 . . 1 . 1 1 8 . . . 4 3 . 1 . 1 5 . 1 1 . . 1 1 1 1 1 1 1 1 1 6 Garrison Access 7 | . . . . . . . 1 . 1 . . . 1 . . . . . 1 . . . . . . 1 . . . . . . 2 . Garrison Relay 5 | . . . . . 1 . . 1 . . . . . . . . . 1 . . . . . . . . 1 . . 1 . . . . Network Hub 1 | . . . . . . . . . . . . . . . . . 1 . . . . . . . . . . . . . . . . . Energy Cycler 2 | . . . . . . . . . . . . . . 2 . . . . . . . . . . . . . . . . . . . . Machines Sabotaged 1 | . . . . . . . . . . . . . . . . . 1 . . . . . . . . . . . . . . . . . Garrisons Compromised 1 | . . . . . . . 1 . . . . . . . . . . . . . . . . . . . . . . . . . . . Overloaded Fab Kills . | . . . . . . . . . . . . . . . . . . . . . . . . . . . . . . . . . . . Hacking | -11 -10 -10 -9 -9 -9 -9 -7 -7 -7 -7 -7 -6 -6 -6 -6 -6 -6 -6 -5 -5 -5 -5 -4 -4 -4 -3 -3 -3 -3 -3 -2 -2 -1 -1 --------- Run | Scr Mat Min Mat Sto Gar Rec Fac Gar Fac Low Zio Pro Fac Ext Cet Arc Hub Gar Fac Upp Upp Zhi Pro Fac DSF Res Gar Res Qua Gar Res Tes Acc Com Machines Accessed 135 | . 4 . 3 4 . 10 13 . 13 . . . 8 8 1 1 3 . 3 1 3 4 . 1 . 9 . 9 10 . 6 4 12 5 Terminals 66 | . 4 . 2 1 . 3 5 . 6 . . . 2 7 1 . 2 . . . 1 . . 1 . . . 5 8 . 4 2 8 4 Fabricators 15 | . . . . . . . 2 . 3 . . . 1 . . . . . 1 . . . . . . 2 . 2 . . 1 1 2 . Repair Stations 15 | . . . 1 1 . . 2 . 3 . . . 1 1 . . . . 1 . . . . . . 2 . 1 . . 1 . . 1 Recycling Units 14 | . . . . 1 . 7 . . . . . . 3 . . . . . . . . . . . . 2 . 1 . . . . . . Scanalyzers 5 | . . . . . . . 2 . . . . . . . . . . . . . . . . . . 1 . . 1 . . 1 . . Garrison Access 12 | . . . . 1 . . 2 . 1 . . . 1 . . . 1 . 1 . . . . . . 2 . . 1 . . . 2 . Total Hacks 414 | . 14 . 10 11 . 32 39 . 32 . . . 17 17 2 25 5 . 13 1 7 17 . 1 . 29 . 32 28 . 22 15 32 13 Successful 222 | . 7 . 6 6 . 16 25 . 16 . . . 8 8 1 25 3 . 6 1 7 17 . 1 . 12 . 14 10 . 10 6 15 2 Failed 192 | . 7 . 4 5 . 16 14 . 16 . . . 9 9 1 . 2 . 7 . . . . . . 17 . 18 18 . 12 9 17 11 Catastrophic 45 | . 3 . . . . 1 3 . 2 . . . . 3 . . . . 2 . . . . . . 4 . 3 4 . 3 4 8 5 Database Lockouts . | . . . . . . . . . . . . . . . . . . . . . . . . . . . . . . . . . . . Manual 130 | . 9 . 4 3 . 14 13 . 10 . . . 2 3 1 . 4 . 2 . . . . . . 10 . 9 14 . 7 7 14 4 Terminals 184 | . 14 . 7 3 . 9 14 . 13 . . . 4 15 2 . 3 . . . 1 . . 1 . . . 18 22 . 12 9 26 11 Fabricators 43 | . . . . . . . 4 . 7 . . . 2 . . . . . 6 . . . . . . 4 . 8 . . 4 4 4 . Repair Stations 45 | . . . 3 2 . . 3 . 8 . . . 5 2 . . . . 4 . . . . . . 7 . 3 . . 6 . . 2 Recycling Units 43 | . . . . 3 . 23 . . . . . . 4 . . . . . . . . . . . . 10 . 3 . . . . . . Scanalyzers 21 | . . . . . . . 12 . . . . . . . . . . . . . . . . . . 4 . . 3 . . 2 . . Garrison Access 29 | . . . . 3 . . 6 . 4 . . . 2 . . . 2 . 3 . . . . . . 4 . . 3 . . . 2 . Terminal Hacks 108 | . 7 . 3 1 . 2 5 . 6 . . . 2 5 1 25 . . . 1 7 17 . 1 . . . 4 6 . 3 2 9 1 Record 37 | . . . . . . . . . . . . . . . . 25 . . . . 6 5 . . . . . . . . . . . 1 Part Schematic 6 | . 1 . . . . . . . . . . . . . . . . . . . . 4 . . . . . 1 . . . . . . Robot Schematic 1 | . . . . . . . . . . . . . . . . . . . . . . . . . . . . . 1 . . . . . Robot Analysis 8 | . 2 . 1 . . . . . 1 . . . . . . . . . . . . 4 . . . . . . . . . . . . Prototype ID Bank 11 | . 2 . 1 . . 1 1 . 1 . . . . . . . . . . . . 4 . . . . . . 1 . . . . . Open Door 9 | . . . . . . . . . . . . . 1 3 1 . . . . 1 1 . . . . . . . 1 . . . 1 . Open DSF 4 | . . . . . . . . . 1 . . . . . . . . . . . . . . 1 . . . 1 . . 1 . . . Level Access Points 1 | . . . . . . . . . . . . . . . . . . . . . . . . . . . . . . . . 1 . . Branch Access Points 5 | . . . 1 . . . . . 1 . . . 1 . . . . . . . . . . . . . . 1 . . . . 1 . Machine Index 1 | . . . . . . . . . . . . . . . . . . . . . . . . . . . . . 1 . . . . . Terminal Index 2 | . . . . . . . . . . . . . . . . . . . . . . . . . . . . . 1 . . . 1 . Garrison Index 1 | . . . . . . . 1 . . . . . . . . . . . . . . . . . . . . . . . . . . . Unreport Threat 10 | . . . . . . 1 1 . 1 . . . . 1 . . . . . . . . . . . . . . . . 1 1 4 . Locate Traps 3 | . . . . . . . 1 . . . . . . . . . . . . . . . . . . . . 1 . . . . 1 . Recall Reinforcements 2 | . 1 . . . . . . . . . . . . . . . . . . . . . . . . . . . . . . . 1 . Recall Assault 1 | . . . . . . . 1 . . . . . . . . . . . . . . . . . . . . . . . . . . . Zone Layout 6 | . 1 . . 1 . . . . 1 . . . . 1 . . . . . . . . . . . . . . 1 . 1 . . . Fabricator Hacks 14 | . . . . . . . . . 1 . . . . . . . . . 3 . . . . . . 1 . 5 . . 1 1 2 . Load Schematic 6 | . . . . . . . . . 1 . . . . . . . . . 2 . . . . . . . . 2 . . . . 1 . Build 8 | . . . . . . . . . . . . . . . . . . . 1 . . . . . . 1 . 3 . . 1 1 1 . Repair Station Hacks 24 | . . . 2 2 . . 2 . 4 . . . 4 2 . . . . 1 . . . . . . 1 . 1 . . 4 . . 1 Scan Component 15 | . . . 1 1 . . 1 . 3 . . . 2 1 . . . . 1 . . . . . . 1 . 1 . . 2 . . 1 Repair 9 | . . . 1 1 . . 1 . 1 . . . 2 1 . . . . . . . . . . . . . . . . 2 . . . Recycling Unit Hacks 9 | . . . . 1 . 6 . . . . . . . . . . . . . . . . . . . 1 . 1 . . . . . . Retrieve Components 9 | . . . . 1 . 6 . . . . . . . . . . . . . . . . . . . 1 . 1 . . . . . . Scanalyzer 12 | . . . . . . . 10 . . . . . . . . . . . . . . . . . . 2 . . . . . . . . Insert Component 6 | . . . . . . . 4 . . . . . . . . . . . . . . . . . . 2 . . . . . . . . Analyze 6 | . . . . . . . 6 . . . . . . . . . . . . . . . . . . . . . . . . . . . Garrison Access Hacks 14 | . . . . 1 . . 2 . 2 . . . 2 . . . 1 . 1 . . . . . . 2 . . 1 . . . 2 . Unlock Access 6 | . . . . 1 . . 2 . . . . . . . . . 1 . . . . . . . . 1 . . 1 . . . . . Seal Access 5 | . . . . . . . . . 1 . . . 1 . . . . . . . . . . . . 1 . . . . . . 2 . Coupler Status 3 | . . . . . . . . . 1 . . . 1 . . . . . 1 . . . . . . . . . . . . . . . Unauthorized Hacks 41 | . . . 1 1 . 8 6 . 3 . . . . 1 . . 2 . 1 . . . . . . 5 . 3 3 . 2 3 2 . Terminals 14 | . . . 1 1 . 1 2 . . . . . . 1 . . 1 . . . . . . . . . . 1 2 . 1 1 2 . Botnet 12 | . . . 1 1 . 1 2 . . . . . . 1 . . . . . . . . . . . . . 1 1 . 1 1 2 . Disrupt 1 | . . . . . . . . . . . . . . . . . . . . . . . . . . . . . 1 . . . . . Sabotage 1 | . . . . . . . . . . . . . . . . . 1 . . . . . . . . . . . . . . . . . Fabricators 12 | . . . . . . . 3 . 3 . . . . . . . . . . . . . . . . 2 . 1 . . 1 2 . . Report 6 | . . . . . . . 1 . 1 . . . . . . . . . . . . . . . . 1 . 1 . . 1 1 . . Liberate 6 | . . . . . . . 2 . 2 . . . . . . . . . . . . . . . . 1 . . . . . 1 . . Repair Stations . | . . . . . . . . . . . . . . . . . . . . . . . . . . . . . . . . . . . Recycling Units 10 | . . . . . . 7 . . . . . . . . . . . . . . . . . . . 2 . 1 . . . . . . Recyclers 1 | . . . . . . . . . . . . . . . . . . . . . . . . . . 1 . . . . . . . . Mask 2 | . . . . . . . . . . . . . . . . . . . . . . . . . . 1 . 1 . . . . . . Tunnel 7 | . . . . . . 7 . . . . . . . . . . . . . . . . . . . . . . . . . . . . Scanalyzers 1 | . . . . . . . . . . . . . . . . . . . . . . . . . . . . . 1 . . . . . Researchers 1 | . . . . . . . . . . . . . . . . . . . . . . . . . . . . . 1 . . . . . Garrison Access 4 | . . . . . . . 1 . . . . . . . . . 1 . 1 . . . . . . 1 . . . . . . . . Reprogram 4 | . . . . . . . 1 . . . . . . . . . 1 . 1 . . . . . . 1 . . . . . . . . Data Cores Recovered . | . . . . . . . . . . . . . . . . . . . . . . . . . . . . . . . . . . . Used . | . . . . . . . . . . . . . . . . . . . . . . . . . . . . . . . . . . . Hacking Detections 104 | . 4 . 3 3 . 6 12 . 12 . . . 7 6 2 . 3 . 2 . 1 . . . . 7 . 6 8 . 4 3 10 5 Full Trace Events 19 | . 2 . 1 . . 1 2 . 3 . . . . 1 . . . . 2 . . . . . . 1 . 1 3 . 1 . . 1 Feedback Events 1 | . . . . . . . . . . . . . . . . . . . . . . . . . . . . . 1 . . . . . Hackware Fried 1 | . . . . . . . . . . . . . . . . . . . . . . . . . . . . . 1 . . . . . Feedback Blocked . | . . . . . . . . . . . . . . . . . . . . . . . . . . . . . . . . . . . Robot Schematics Acquired 6 | . . . . . . . . . . . 4 . . . . . . . . . . . . . . . . . 1 . . 1 . . Robots Built 12 | . . . . . . . . . . . . . . . . . . . 2 . . . . . . . . 4 . . . 4 2 . Authchips 4 | . . . . . . . . . . . . . . . . . . . 1 . . . . . . . . 2 . . . . 1 . Time 551 | . . . . . . . . . . . . . . . . . . . 93 . . . . . . . . 186 . . . 204 68 . Total Robot Build Rating 90 | . . . . . . . . . . . . . . . . . . . 14 . . . . . . . . 28 . . . 32 16 . Part Schematics Acquired 28 | . 1 . . . . . 4 . . . 15 . . . . . . . . . . 4 . . . . . 1 2 . . 1 . . Parts Built 4 | . . . . . . . . . . . . . . . . . . . . . . . . . . . . 2 . . 2 . . . Authchips . | . . . . . . . . . . . . . . . . . . . . . . . . . . . . . . . . . . . Time 417 | . . . . . . . . . . . . . . . . . . . . . . . . . . 139 . 139 . . 139 . . . Total Part Build Rating 36 | . . . . . . . . . . . . . . . . . . . . . . . . . . . . 18 . . 18 . . . Parts Repaired 9 | . . . 1 1 . . 1 . 1 . . . 2 1 . . . . . . . . . . . . . . . . 2 . . . Time 399 | . . . 32 32 . . 32 . 22 . . . 174 25 . . . . . . . . . . . . . . . . 82 . . . Parts Recycled . | . . . . . . . . . . . . . . . . . . . . . . . . . . . . . . . . . . . Recycled Matter . | . . . . . . . . . . . . . . . . . . . . . . . . . . . . . . . . . . . Retrieved Matter . | . . . . . . . . . . . . . . . . . . . . . . . . . . . . . . . . . . . Retrieved Components 16 | . . . . 2 . 11 . . . . . . . . . . . . . . . . . . . . . 3 . . . . . . Parts Scanalyzed 5 | . . . . . . . 4 . . . . . . . . . . . . . . . . . . 1 . . . . . . . . Part Schematics Acquired 4 | . . . . . . . 4 . . . . . . . . . . . . . . . . . . . . . . . . . . . Parts Damaged 1 | . . . . . . . 1 . . . . . . . . . . . . . . . . . . . . . . . . . . . Bothacking | -11 -10 -10 -9 -9 -9 -9 -7 -7 -7 -7 -7 -6 -6 -6 -6 -6 -6 -6 -5 -5 -5 -5 -4 -4 -4 -3 -3 -3 -3 -3 -2 -2 -1 -1 ------------ Run | Scr Mat Min Mat Sto Gar Rec Fac Gar Fac Low Zio Pro Fac Ext Cet Arc Hub Gar Fac Upp Upp Zhi Pro Fac DSF Res Gar Res Qua Gar Res Tes Acc Com Used RIF Installer 5 | . . . . . 1 . . 1 . . . . . . . . . 1 . . . . . . . . 1 . . 1 . . . . Command Fork 2 | . . . . . . . . 1 . . . . . . . . . . . . . . . . . . 1 . . . . . . . Zone Cloak 1 | . . . . . . . . . . . . . . . . . . 1 . . . . . . . . . . . . . . . . Patrol Navigation 1 | . . . . . . . . . . . . . . . . . . . . . . . . . . . . . . 1 . . . . Robots Hacked 43 | . . . . . . . 2 . . . . . 5 3 . . 1 . . . . . . . . 1 6 2 8 5 2 2 4 2 Non-combat 16 | . . . . . . . 1 . . . . . 3 3 . . . . . . . . . . . . . 1 3 . 1 1 2 1 Combat 27 | . . . . . . . 1 . . . . . 2 . . . 1 . . . . . . . . 1 6 1 5 5 1 1 2 1 Robot Hacks Applied 56 | . . . . . . . 6 . . . . . 5 5 . . 1 . . . . . . . . 1 6 3 11 6 2 3 5 2 parse_system 1 | . . . . . . . . . . . . . . . . . . . . . . . . . . . . . . . . . 1 . no_distress 1 | . . . . . . . . . . . . . . 1 . . . . . . . . . . . . . . . . . . . . find_chute 1 | . . . . . . . . . . . . . 1 . . . . . . . . . . . . . . . . . . . . . purge_threat 15 | . . . . . . . 5 . . . . . . 2 . . . . . . . . . . . . . 2 3 . . 1 2 . locate_traps 1 | . . . . . . . . . . . . . . 1 . . . . . . . . . . . . . . . . . . . . reprogram_traps 1 | . . . . . . . . . . . . . . . . . . . . . . . . . . . . . . . . 1 . . block_reporting 1 | . . . . . . . . . . . . . . . . . . . . . . . . . . . . . 1 . . . . . summon_haulers 1 | . . . . . . . . . . . . . . . . . . . . . . . . . . . . . . . . . 1 . map_route 1 | . . . . . . . . . . . . . . . . . . . . . . . . . . . . . . . 1 . . . disable_scanner 3 | . . . . . . . . . . . . . . . . . . . . . . . . . . . . . 2 . . 1 . . locate_prototypes 1 | . . . . . . . . . . . . . . . . . . . . . . . . . . . . . 1 . . . . . scatter_targeting 1 | . . . . . . . . . . . . . . . . . . . . . . . . . . . . . . 1 . . . . spike_heat 1 | . . . . . . . . . . . . . . . . . . . . . . . . . . . . . . 1 . . . . amplify_resonance 4 | . . . . . . . . . . . . . . . . . . . . . . . . . . 1 1 1 . 1 . . . . wipe_record 1 | . . . . . . . . . . . . . . . . . . . . . . . . . . . . . 1 . . . . . reboot_system 1 | . . . . . . . . . . . . . . . . . 1 . . . . . . . . . . . . . . . . . overwrite_iff 7 | . . . . . . . . . . . . . 1 . . . . . . . . . . . . . 4 . 2 . . . . . streamctrl_low 1 | . . . . . . . . . . . . . . . . . . . . . . . . . . . . . 1 . . . . . streamctrl_high 4 | . . . . . . . . . . . . . 1 . . . . . . . . . . . . . . . . 2 . . . 1 formatsys_low 2 | . . . . . . . . . . . . . . 1 . . . . . . . . . . . . . . . . . . . 1 formatsys_high 7 | . . . . . . . 1 . . . . . 2 . . . . . . . . . . . . . 1 . . 1 1 . 1 . Relay Couplers Released 29 | . . . . . 4 . 1 4 1 . . . 3 . . . . 4 1 . . . . . . 2 3 . . 5 . . 1 . Machine Destruction 26 | . . . . . 4 . 1 4 1 . . . . . . . . 4 1 . . . . . . 2 3 . . 5 . . 1 . Programmers 3 | . . . . . . . . . . . . . 3 . . . . . . . . . . . . . . . . . . . . . Attached 23 | . . . . . . . 3 . . . . . 2 1 . . 1 . . 1 . . . . . 3 1 . 3 4 1 . 2 1 Fabnet Peak Effective % . | . . . . . . . . . . . . . . . . . . . . . . . . . . . . . . . . . . . Robots Rewired 19 | . . . . . . . . . . . . . 1 17 . . . . . . . . . . . . . . . . 1 . . . Allies Hacked 3 | . . . . . . . . . . . . . . . . . . . . . . . . . . . . 1 . . . . 2 . Hacks Repelled . | . . . . . . . . . . . . . . . . . . . . . . . . . . . . . . . . . . . Allies | -11 -10 -10 -9 -9 -9 -9 -7 -7 -7 -7 -7 -6 -6 -6 -6 -6 -6 -6 -5 -5 -5 -5 -4 -4 -4 -3 -3 -3 -3 -3 -2 -2 -1 -1 -------- Run | Scr Mat Min Mat Sto Gar Rec Fac Gar Fac Low Zio Pro Fac Ext Cet Arc Hub Gar Fac Upp Upp Zhi Pro Fac DSF Res Gar Res Qua Gar Res Tes Acc Com Total Allies 79 | . . . . . . . 7 . 3 . . . 7 23 4 . . . 3 . . . . . . 2 6 4 5 3 3 4 3 2 Largest Group 18 | . . . . . . . 3 . 3 2 2 2 2 16 18 14 7 4 2 2 . . . . . 2 4 4 2 2 3 4 6 1 Highest-Rated Group 856 | . . . . . . . 48 . 48 32 32 32 109 628 856 798 336 251 112 112 . . . . . 112 189 224 105 111 278 272 248 89 Highest-Rated Ally 178 | . . . . . . . 20 . 16 16 16 16 109 159 152 149 96 96 56 56 . . . . . 56 56 56 58 64 178 172 64 89 Total Orders 12 | . . . . . . . . . . . . . 1 1 . . 3 . . . . . . . . . . . 2 . 2 2 . 1 STAY 6 | . . . . . . . . . . . . . 1 . . . 2 . . . . . . . . . . . 1 . 1 1 . . FOLLOW 3 | . . . . . . . . . . . . . . . . . 1 . . . . . . . . . . . . . 1 1 . . AID 3 | . . . . . . . . . . . . . . 1 . . . . . . . . . . . . . . 1 . . . . 1 Ally Attacks 709 | . . . . . . . 58 . 6 . . 26 25 112 98 39 67 30 18 31 . . . . . . 39 52 14 19 24 37 11 3 Total Damage 20047 | . . . . . . . 594 . 64 . . 316 699 2927 2123 1111 1929 576 442 1008 . . . . . . 1226 2154 545 619 1547 1629 465 73 Kills 136 | . . . . . . . 6 . 1 . . . 5 18 16 7 11 7 6 11 . . . . . . 11 13 2 5 6 10 1 . Allies Corrupted 6 | . . . . . . . . . . . . . . . . . . . . . . . . . . . . 1 . 1 . . 3 1 Allies Melted 1 | . . . . . . . . . . . . . . . . . . . . . . . . . . . . . . 1 . . . . Intel | -11 -10 -10 -9 -9 -9 -9 -7 -7 -7 -7 -7 -6 -6 -6 -6 -6 -6 -6 -5 -5 -5 -5 -4 -4 -4 -3 -3 -3 -3 -3 -2 -2 -1 -1 ------- Run | Scr Mat Min Mat Sto Gar Rec Fac Gar Fac Low Zio Pro Fac Ext Cet Arc Hub Gar Fac Upp Upp Zhi Pro Fac DSF Res Gar Res Qua Gar Res Tes Acc Com Robot Analysis Total 8 | . 2 . 1 . . . . . 1 . . . . . . . . . . . . 4 . . . . . . . . . . . . Derelict Logs Recovered 9 | . . 2 . . . . . . . . . 2 . . . . . . . 1 3 . 1 . . . . . . . . . . . Drone Launches . | . . . . . . . . . . . . . . . . . . . . . . . . . . . . . . . . . . . Drone Recoveries . | . . . . . . . . . . . . . . . . . . . . . . . . . . . . . . . . . . . Exploration | -11 -10 -10 -9 -9 -9 -9 -7 -7 -7 -7 -7 -6 -6 -6 -6 -6 -6 -6 -5 -5 -5 -5 -4 -4 -4 -3 -3 -3 -3 -3 -2 -2 -1 -1 ------------- Run | Scr Mat Min Mat Sto Gar Rec Fac Gar Fac Low Zio Pro Fac Ext Cet Arc Hub Gar Fac Upp Upp Zhi Pro Fac DSF Res Gar Res Qua Gar Res Tes Acc Com Turns Passed 27484 | 2 616 1004 863 564 678 381 1975 921 2040 45 356 1301 944 1414 264 106 325 461 574 1354 1795 296 833 39 418 840 305 648 544 572 1114 571 1585 1736 Spaces Moved 13563 | 2 320 587 332 227 336 208 976 423 858 29 222 753 519 653 147 55 130 252 284 794 1049 168 461 24 176 367 182 334 232 237 561 249 770 646 Core . | . . . . . . . . . . . . . . . . . . . . . . . . . . . . . . . . . . . Treads 9872 | . 317 587 332 227 336 208 976 295 . . . . . . . . . 60 284 794 1049 168 461 24 176 367 182 334 232 237 561 249 770 646 Legs 5 | 2 3 . . . . . . . . . . . . . . . . . . . . . . . . . . . . . . . . . Wheels 3686 | . . . . . . . . 128 858 29 222 753 519 653 147 55 130 192 . . . . . . . . . . . . . . . . Hover . | . . . . . . . . . . . . . . . . . . . . . . . . . . . . . . . . . . . Flight . | . . . . . . . . . . . . . . . . . . . . . . . . . . . . . . . . . . . Fastest Speed 120 | 120 120 160 160 160 160 160 160 145 160 160 145 160 130 130 130 130 130 130 160 160 160 160 160 163 163 150 150 150 150 155 152 163 157 155 Average Speed 155 | 120 159 160 160 160 160 160 160 156 160 160 155 160 147 130 130 130 130 137 160 160 160 160 161 163 163 155 150 150 150 155 156 163 161 156 Slowest Speed 240 | 120 160 160 240 160 160 160 160 160 160 160 160 160 160 130 130 130 130 160 160 160 160 160 163 163 163 166 150 150 155 155 163 163 163 158 Overloaded Moves . | . . . . . . . . . . . . . . . . . . . . . . . . . . . . . . . . . . . Propulsion Burnouts . | . . . . . . . . . . . . . . . . . . . . . . . . . . . . . . . . . . . Robots Hopped . | . . . . . . . . . . . . . . . . . . . . . . . . . . . . . . . . . . . Cave-ins Triggered . | . . . . . . . . . . . . . . . . . . . . . . . . . . . . . . . . . . . Teleports 1 | . . . . . . . . . . . . . . . . . . . . . . . . . . . . . . . . . 1 . Exploration Rate (%) 42 | 2 55 98 24 34 48 63 35 64 26 3 14 87 13 80 65 66 21 43 6 93 97 60 68 1 84 16 43 12 28 45 18 30 25 35 Regions Visited 34 Branch Regions 17 Pre-discovered Areas 14 | . . 1 . . . 7 . . . . . 1 . . . . . . . . 1 3 1 . . . . . . . . . . . Known Exits Taken 12 | . . . 1 1 . . 1 . 1 . . . 1 . . . 1 . . . . . . 1 . 1 . 1 1 . . 1 1 . Unknown Exits Taken 16 | 1 1 1 . . . 1 . . . 1 1 1 . 1 1 1 . . 1 1 1 1 1 . . . . . . . 1 . . . Scrap Searched 17 | . . 1 . . . . . . . 1 . 5 . . . . . . . 4 5 . 1 . . . . . . . . . . . Spaces Dug 172 | . . . . 8 4 . 1 . 42 . . . 5 1 . . 5 . . . 5 . 38 . 25 . . 3 3 . 5 . 12 15 Terrain Destroyed 1702 | . 11 24 30 12 33 25 13 28 131 . . 22 50 26 3 . 11 16 39 41 22 . 73 . 112 58 . 26 15 27 22 30 80 722 Melee 1 | . . . . . . . . . . . . . . 1 . . . . . . . . . . . . . . . . . . . . Projectile 333 | . . . 1 4 . . 5 2 29 . . 12 10 14 3 . 7 16 11 12 7 . 10 . 30 11 . 20 11 8 11 26 40 33 AOE 1367 | . 11 24 29 8 33 25 8 26 102 . . 10 40 11 . . 4 . 28 29 15 . 63 . 82 47 . 6 4 19 11 4 40 688 Terrain Rammed . | . . . . . . . . . . . . . . . . . . . . . . . . . . . . . . . . . . . Walls Destroyed . | . . . . . . . . . . . . . . . . . . . . . . . . . . . . . . . . . . . Machines Disabled . | . . . . . . . . . . . . . . . . . . . . . . . . . . . . . . . . . . . Actions | -11 -10 -10 -9 -9 -9 -9 -7 -7 -7 -7 -7 -6 -6 -6 -6 -6 -6 -6 -5 -5 -5 -5 -4 -4 -4 -3 -3 -3 -3 -3 -2 -2 -1 -1 --------- Run | Scr Mat Min Mat Sto Gar Rec Fac Gar Fac Low Zio Pro Fac Ext Cet Arc Hub Gar Fac Upp Upp Zhi Pro Fac DSF Res Gar Res Qua Gar Res Tes Acc Com Total 17975 | 1 387 612 600 368 434 236 1273 637 1398 28 231 806 657 1070 210 85 268 324 355 830 1132 193 521 24 247 549 209 409 351 383 743 319 975 1110 Wait 2151 | . 21 . 196 102 48 1 70 139 432 . . 14 30 176 40 20 82 13 27 4 34 4 31 . 11 104 8 16 56 101 116 9 51 195 Move 13532 | 1 319 586 331 226 335 207 976 422 857 28 221 752 518 652 146 54 130 251 283 793 1048 167 460 23 175 366 181 333 232 236 560 248 769 646 Hop . | . . . . . . . . . . . . . . . . . . . . . . . . . . . . . . . . . . . Pick Up 156 | . 9 1 7 1 5 1 19 10 7 . 1 4 9 10 5 1 1 4 4 3 2 3 2 . 2 3 4 3 2 4 7 1 10 11 Fast Attach 135 | . 2 . 9 . 1 . 14 3 6 . 3 2 13 2 1 1 1 4 4 1 4 6 1 . 4 10 1 4 . 2 7 2 14 13 Attach 84 | . . . 1 2 1 . 7 3 2 . . 2 3 3 3 . 1 3 2 1 . . . 1 2 4 . 3 4 2 3 1 10 20 Detach 59 | . 1 . 2 . . . 3 1 1 . . . 8 2 2 1 . 2 1 1 2 . . . 4 2 . 3 1 . 2 3 11 6 Swap 229 | . 5 2 8 3 8 4 31 5 7 . 1 6 18 17 1 2 5 . 2 5 4 2 4 . 4 8 4 6 9 6 11 7 10 24 Drop 202 | . 6 . 10 1 4 2 29 5 12 . 4 3 18 9 6 2 1 5 9 2 7 8 3 . . 7 2 5 1 1 8 3 13 16 Fire 1033 | . 19 22 34 29 31 12 62 32 70 . 1 23 29 37 6 4 10 20 23 20 31 3 20 . 44 45 9 35 46 31 24 42 71 148 Melee 68 | . . . . . . . . . . . . . . 66 . . . . . . . . . . . . . . . . 2 . . . Ram 3 | . . . . . . . . . . . . . . . . . 3 . . . . . . . . . . . . . . . . . Kick . | . . . . . . . . . . . . . . . . . . . . . . . . . . . . . . . . . . . Crush 42 | . 5 1 2 4 . 9 5 . . . . . . . . . . . . . . . . . . . . . . . 2 3 5 6 Escape Stasis 60 | . . . . . 1 . . 17 4 . . . . 16 . . . 22 . . . . . . . . . . . . . . . . Rewire 96 | . . . . . . . . . . . . . 11 80 . . . . . . . . . . 1 . . 1 . . 1 . 1 1 Trap 125 | . . . . . . . 57 . . . . . . . . . 34 . . . . . . . . . . . . . . . 10 24 Miscellaneous . | . . . . . . . . . . . . . . . . . . . . . . . . . . . . . . . . . . . Route ------- -11/Scrapyard -10/Materials (discovered 3 exits: *Mat / [*Min x2]) -10/Mines (discovered 3 exits: *Mat x2 / [*Exi]) -9/Materials (discovered 3 exits: Min / *Sto x2) -9/Storage -9/Garrison (discovered 2 exits: *Rec x2) -9/Recycling -7/Factory (discovered 3 exits: *Fac / *Low / Gar) -7/Garrison (discovered 2 exits: *Fac x2) -7/Factory (discovered 3 exits: *Fac / *Low x2) -7/Lower Caves -7/Zion -6/Proximity Caves -6/Factory (discovered 4 exits: Low x2 / *Ext x2) -6/Extension (discovered 2 exits: *Fac / *Cet) -6/Cetus (discovered 2 exits: *Fac / *Arc) -6/Archives -6/Hub_04(d) (discovered 3 exits: *Fac x2 / Gar) -6/Garrison -5/Factory -5/Upper Caves -5/Upper Caves (discovered 2 exits: *Fac / *Zhi) -5/Zhirov -4/Proximity Caves -4/Factory -4/DSF -3/Research -3/Garrison -3/Research (discovered 2 exits: *Qua x2) -3/Quarantine -3/Garrison -2/Research -2/Testing -1/Access -1/Command To Epsilon Eridani History --------- Turn | Location | Event 1 | -11/Scrapyard | Discovered new exit (range 1) 3 | -11/Scrapyard | Entered Materials 174 | -10/Materials | Discovered new exit (range 14) 233 | -10/Materials | Discovered new exit (range 8) 306 | -10/Materials | Build established: Mutant 534 | -10/Materials | Discovered new exit (range 15) 619 | -10/Materials | Entered Mines 626 | -10/Mines | Learned location of Mines (-9) 690 | -10/Mines | Deemed a non-threat by the Exiles lab entrance 690 | -10/Mines | Discovered new exit (range 5) 718 | -10/Mines | YI-UF0 nonchalantly dropped a Grenade Launcher on the ground 790 | -10/Mines | Destroyed YI-UF0 828 | -10/Mines | Discovered new exit (range 7) 1046 | -10/Mines | Discovered new exit (range 16) 1145 | -10/Mines | Learned Materials machine intel 1623 | -10/Mines | Entered Materials 1623 | -9/Materials | Evolved 2 slots: Propulsion x1, Utility x1 1624 | -9/Materials | Loaded intel: 60 machine locations 1720 | -9/Materials | Discovered new exit (range 13) 1751 | -9/Materials | Destroyed 8 combat bots 1778 | -9/Materials | Identified exit to Mines 1778 | -9/Materials | Identified exit to Storage 2260 | -9/Materials | Repaired Med. Armor Plating 2412 | -9/Materials | Build established: Scavenger-Mutant 2486 | -9/Materials | Entered Storage 2775 | -9/Storage | Repaired Imp. Light Cannon 2838 | -9/Storage | Garrison activated, responded to threat 3027 | -9/Storage | Identified exit to Garrison 3045 | -9/Storage | Build established: Mutant 3050 | -9/Storage | Entered Garrison 3092 | -9/Garrison | Triggered checkpoint 3189 | -9/Garrison | Triggered checkpoint 3219 | -9/Garrison | Discovered new exit (range 15) 3301 | -9/Garrison | Triggered checkpoint 3330 | -9/Garrison | Destroyed 8 combat bots 3370 | -9/Garrison | Discovered new exit (range 11) 3394 | -9/Garrison | Installed Relay Interface Framework 3520 | -9/Garrison | Triggered checkpoint 3557 | -9/Garrison | Garrison Relay disabled 3728 | -9/Garrison | Entered Recycling 3745 | -9/Recycling | Spotter reported a threat 3754 | -9/Recycling | Spotter reported a threat 3798 | -9/Recycling | Spotter reported a threat 3800 | -9/Recycling | Spotter reported a threat 3825 | -9/Recycling | Spotter reported a threat 3839 | -9/Recycling | Spotter reported a threat 3854 | -9/Recycling | Spotter reported a threat 3859 | -9/Recycling | Spotter reported a threat 3874 | -9/Recycling | Build established: Bothacker-Mutant 3877 | -9/Recycling | Spotter reported a threat 3924 | -9/Recycling | Spotter reported a threat 3945 | -9/Recycling | Spotter reported a threat 3957 | -9/Recycling | Spotter reported a threat 3991 | -9/Recycling | Spotter reported a threat 4010 | -9/Recycling | Spotter reported a threat 4010 | -9/Recycling | Spotter reported a threat 4037 | -9/Recycling | Spotter reported a threat 4038 | -9/Recycling | Spotter reported a threat 4063 | -9/Recycling | Spotter reported a threat 4067 | -9/Recycling | Discovered new exit (range 15) 4078 | -9/Recycling | Spotter reported a threat 4081 | -9/Recycling | Spotter reported a threat 4109 | -9/Recycling | Entered Factory 4109 | -7/Factory | Evolved 4 slots: Propulsion x1, Utility x2, Weapon x1 4963 | -7/Factory | Identified exit to Garrison 4990 | -7/Factory | Discovered new exit (range 5) 5056 | -7/Factory | Repaired Imp. Light Cannon 5363 | -7/Factory | Build established: Gunner 5618 | -7/Factory | Cargo convoy interrupted 5682 | -7/Factory | Discovered new exit (range 4) 6084 | -7/Factory | Identified exit to Garrison 6084 | -7/Factory | Entered Garrison 6139 | -7/Garrison | Triggered checkpoint 6300 | -7/Garrison | Triggered checkpoint 6409 | -7/Garrison | Discovered new exit (range 14) 6545 | -7/Garrison | Discovered new exit (range 13) 6575 | -7/Garrison | Expanded RIF knowledge: Command Fork 6689 | -7/Garrison | Found Hvy. Reflective Plating 6692 | -7/Garrison | Found Hvy. Reflective Plating 6694 | -7/Garrison | Found Hvy. Reflective Plating 6697 | -7/Garrison | Found Hvy. Reflective Plating 6699 | -7/Garrison | Found Hvy. Reflective Plating 6744 | -7/Garrison | Triggered checkpoint 6914 | -7/Garrison | Garrison Relay disabled 7005 | -7/Garrison | Entered Factory 7171 | -7/Factory | Discovered new exit (range 7) 7565 | -7/Factory | Repaired Med. Treads 7583 | -7/Factory | Build established: Bothacker-Gunner 7756 | -7/Factory | Garrison activated, responded to threat 8043 | -7/Factory | Build established: Bothacker-Mutant 8343 | -7/Factory | Identified exit to Lower Caves 9001 | -7/Factory | Build established: Bothacker-Gunner 9005 | -7/Factory | First assault squad dispatched 9045 | -7/Factory | Entered Lower Caves 9045 | -7/Lower Caves | Accompanied by 2 allies 9046 | -7/Lower Caves | A Derelict revealed a hidden shortcut to a safe place 9090 | -7/Lower Caves | Entered Zion 9090 | -7/Zion | Accompanied by 2 allies 9133 | -7/Zion | System corruption cleaned by Quarantine Array 9425 | -7/Zion | Discovered new exit (range 12) 9446 | -7/Zion | Entered Proximity Caves 9446 | -6/Proximity Caves | Accompanied by 2 allies 9596 | -6/Proximity Caves | Learned Factory emergency access door positions 9865 | -6/Proximity Caves | Spotted B-75 Beast 9909 | -6/Proximity Caves | Destroyed B-75 Beast 10000 | -6/Proximity Caves | Discovered new exit (range 8) 10747 | -6/Proximity Caves | Entered Factory 10747 | -6/Factory | Evolved 2 slots: Utility x2 10969 | -6/Factory | Identified exit to Lower Caves 10969 | -6/Factory | Identified exit to Extension 11403 | -6/Factory | Repaired Broken Lgt. Antimatter Cannon 11464 | -6/Factory | Repaired Hvy. Reflective Plating 11484 | -6/Factory | Cargo convoy interrupted 11549 | -6/Factory | Found Prototype Device 11549 | -6/Factory | Identified Exp. Thermal Defense Suite 11552 | -6/Factory | Destroyed 7 combat bots 11559 | -6/Factory | Found Prototype Launcher 11559 | -6/Factory | Identified Mni. Smartbomb Launcher 11691 | -6/Factory | Entered Extension 12053 | -6/Extension | Rescued a captive Derelict 12199 | -6/Extension | Rescued A7 12285 | -6/Extension | Build established: Bothacker-Mutant 12296 | -6/Extension | Rescued a captive Derelict 12296 | -6/Extension | Rescued a captive Derelict 12442 | -6/Extension | Spotted B-75 Beast 12451 | -6/Extension | Destroyed B-75 Beast 12462 | -6/Extension | Spotted B-75 Beast 12479 | -6/Extension | Allies destroyed B-75 Beast 12577 | -6/Extension | Rescued a captive Derelict 12791 | -6/Extension | Energy Cycler disabled 12794 | -6/Extension | Rescued a captive Derelict 12852 | -6/Extension | Repaired Hvy. Reflective Plating 12942 | -6/Extension | Discovered new exit (range 10) 12943 | -6/Extension | Discovered new exit (range 6) 13105 | -6/Extension | Entered Cetus 13105 | -6/Cetus | Accompanied by 16 allies (A7) 13110 | -6/Cetus | Acquired a Cetus Manufacturing Module code from A7 13123 | -6/Cetus | Spotted Cetus Guard 13123 | -6/Cetus | Spotted Cetus Guard 13125 | -6/Cetus | Spotted Cetus Guard 13126 | -6/Cetus | Spotted Cetus Guard 13135 | -6/Cetus | Allies destroyed Cetus Guard 13135 | -6/Cetus | Allies destroyed Cetus Guard 13138 | -6/Cetus | Allies destroyed Cetus Guard 13194 | -6/Cetus | Started Cetus Manufacturing Module 13203 | -6/Cetus | Escorted A7 to Cetus Mainframe 13216 | -6/Cetus | Discovered new exit (range 16) 13219 | -6/Cetus | Manufactured an Enhanced Grunt 13234 | -6/Cetus | Build established: Commander-Gunner 13238 | -6/Cetus | Spotted Cetus Guard 13239 | -6/Cetus | Spotted Cetus Guard 13244 | -6/Cetus | Manufactured an Enhanced Grunt 13244 | -6/Cetus | Spotted Cetus Guard 13246 | -6/Cetus | Spotted Cetus Guard 13248 | -6/Cetus | Allies destroyed Cetus Guard 13252 | -6/Cetus | Discovered new exit (range 16) 13254 | -6/Cetus | Allies destroyed Cetus Guard 13254 | -6/Cetus | Allies destroyed Cetus Guard 13259 | -6/Cetus | Allies destroyed Cetus Guard 13269 | -6/Cetus | Manufactured an Enhanced Grunt 13273 | -6/Cetus | Met Revision 17 13294 | -6/Cetus | Manufactured an Enhanced Grunt 13303 | -6/Cetus | Cetus Manufacturing Module disabled 13369 | -6/Cetus | Entered Archives 13369 | -6/Archives | Accompanied by 14 allies (A7) 13374 | -6/Archives | Received a hacking code to weaken MAIN.C 13417 | -6/Archives | Met Zhirov 13423 | -6/Archives | Reinforcements dispatched to Archives 13431 | -6/Archives | Read partially decrypted archive contents 13436 | -6/Archives | Discovered new exit (range 13) 13468 | -6/Archives | Reinforcements dispatched to Archives 13475 | -6/Archives | Entered Hub_04(d) 13475 | -6/Hub_04(d) | Accompanied by 7 allies 13624 | -6/Hub_04(d) | Discovered new exit (range 13) 13763 | -6/Hub_04(d) | Discovered new exit (range 15) 13788 | -6/Hub_04(d) | Network Hub disabled 13789 | -6/Hub_04(d) | Spotted Lightning 13789 | -6/Hub_04(d) | Spotted Lightning 13789 | -6/Hub_04(d) | Spotted Lightning 13793 | -6/Hub_04(d) | Garrison activated, responded to threat 13800 | -6/Hub_04(d) | Identified exit to Garrison 13800 | -6/Hub_04(d) | Entered Garrison 13800 | -6/Garrison | Accompanied by 4 allies 13852 | -6/Garrison | Triggered checkpoint 13865 | -6/Garrison | Triggered checkpoint 13875 | -6/Garrison | Triggered checkpoint 13972 | -6/Garrison | Discovered new exit (range 8) 13981 | -6/Garrison | Build established: Bothacker-Tank 13987 | -6/Garrison | Expanded RIF knowledge: Zone Cloak 14042 | -6/Garrison | Triggered checkpoint 14143 | -6/Garrison | Garrison Relay disabled 14261 | -6/Garrison | Entered Factory 14261 | -5/Factory | Evolved 2 slots: Power x1, Propulsion x1 14309 | -5/Factory | Discovered new exit (range 9) 14427 | -5/Factory | Garrison activated, responded to threat 14704 | -5/Factory | Fabricated H-77 Assassin? 14835 | -5/Factory | Entered Upper Caves 14835 | -5/Upper Caves | Accompanied by 2 allies 14950 | -5/Upper Caves | Spotted B-75 Beast 14968 | -5/Upper Caves | Allies destroyed B-75 Beast 15401 | -5/Upper Caves | Attracted the attention of an 0b10 checkpoint 15711 | -5/Upper Caves | Learned Factory terminal intel 15939 | -5/Upper Caves | Discovered new exit (range 15) 16189 | -5/Upper Caves | Entered another Upper Caves area 16189 | -5/Upper Caves | Discovered new exit (range 9) 16435 | -5/Upper Caves | Learned Factory security intel 16563 | -5/Upper Caves | Learned Factory trap positions 16818 | -5/Upper Caves | Learned Research emergency access door positions 16818 | -5/Upper Caves | Learned Extension stockpile data 17482 | -5/Upper Caves | Destroyed 2Z-67L(g) 17608 | -5/Upper Caves | Discovered new exit (range 14) 17984 | -5/Upper Caves | Entered Zhirov 17984 | -5/Zhirov | Discovered new exit (range 3) 18058 | -5/Zhirov | Learned location of Command (-1) 18095 | -5/Zhirov | Found Alien Artifact 18095 | -5/Zhirov | Identified Integrated Dissipator 18095 | -5/Zhirov | Installed Integrated Dissipator, increased core heat dissipation (+20) 18186 | -5/Zhirov | Found Alien Artifact 18253 | -5/Zhirov | Cloak Generator disabled 18253 | -5/Zhirov | Attacked by Zhirov 18280 | -5/Zhirov | Entered Proximity Caves 18649 | -4/Proximity Caves | Learned location of Armory (-4) 18752 | -4/Proximity Caves | Discovered new exit (range 6) 18945 | -4/Proximity Caves | Attracted the attention of an 0b10 checkpoint 19113 | -4/Proximity Caves | Entered Factory 19113 | -4/Factory | Evolved 2 slots: Propulsion x1, Utility x1 19114 | -4/Factory | Loaded intel: 98 trap records 19116 | -4/Factory | Loaded intel: 25 terminal locations 19151 | -4/Factory | Identified exit to DSF 19152 | -4/Factory | Entered DSF 19168 | -4/DSF | Additional patrols routed to DSF 19233 | -4/DSF | Discovered new exit (range 15) 19396 | -4/DSF | Sterilization system engaged 19416 | -4/DSF | Ambient heat levels rising (+10) 19431 | -4/DSF | Ambient heat levels rising (+10) 19446 | -4/DSF | Ambient heat levels rising (+10) 19461 | -4/DSF | Ambient heat levels rising (+10) 19476 | -4/DSF | Ambient heat levels rising (+10) 19491 | -4/DSF | Ambient heat levels rising (+10) 19506 | -4/DSF | Ambient heat levels rising (+10) 19521 | -4/DSF | Ambient heat levels rising (+10) 19536 | -4/DSF | Ambient heat levels rising (+10) 19551 | -4/DSF | Ambient heat levels rising (+10) 19566 | -4/DSF | Ambient heat levels rising (+10) 19570 | -4/DSF | Entered Research 19570 | -3/Research | Evolved 2 slots: Utility x2 19581 | -3/Research | Build established: Bothacker-Mutant 19732 | -3/Research | Spotted B-86 Titan 19766 | -3/Research | Destroyed B-86 Titan 19822 | -3/Research | Lost 3 parts (2u1w) 19997 | -3/Research | Identified Transdimensional Reconstructor 20320 | -3/Research | First assault squad dispatched 20334 | -3/Research | Build established: Bothacker-Gunner 20386 | -3/Research | Identified exit to Garrison 20410 | -3/Research | Entered Garrison 20410 | -3/Garrison | Accompanied by 2 allies 20418 | -3/Garrison | Expanded RIF knowledge: Command Fork 20476 | -3/Garrison | Triggered checkpoint 20500 | -3/Garrison | Triggered checkpoint 20566 | -3/Garrison | Discovered new exit (range 8) 20608 | -3/Garrison | Triggered checkpoint 20637 | -3/Garrison | Garrison Relay disabled 20715 | -3/Garrison | Entered Research 20715 | -3/Research | Accompanied by 2 allies 20840 | -3/Research | Fabricated H-77 Assassin? 21002 | -3/Research | Fabricated H-77 Assassin (x2) 21046 | -3/Research | Identified exit to Quarantine 21065 | -3/Research | Spotted B-86 Titan 21072 | -3/Research | Allies destroyed B-86 Titan 21111 | -3/Research | Fabricated Adv. Heavy Siege Treads (x2) 21141 | -3/Research | Build established: Botlord-Gunner 21363 | -3/Research | Entered Quarantine 21363 | -3/Quarantine | Accompanied by 1 ally 21584 | -3/Quarantine | Found Matter Drive 21613 | -3/Quarantine | First assault squad dispatched 21735 | -3/Quarantine | Spotted Alpha 7 21795 | -3/Quarantine | Destroyed Alpha 7 21849 | -3/Quarantine | Found Alien Launcher 21907 | -3/Quarantine | Identified exit to Garrison 21907 | -3/Quarantine | Imp. Hacking Suite fried by hacking feedback 21907 | -3/Quarantine | Entered Garrison 22088 | -3/Garrison | Triggered checkpoint 22220 | -3/Garrison | Discovered new exit (range 10) 22245 | -3/Garrison | Expanded RIF knowledge: Patrol Navigation 22312 | -3/Garrison | Triggered checkpoint 22375 | -3/Garrison | Garrison Relay disabled 22479 | -3/Garrison | Entered Research 22479 | -2/Research | Evolved 2 slots: Propulsion x2 22987 | -2/Research | Spotted B-90 Cyclops 22990 | -2/Research | Build established: Bothacker-Gunner 23138 | -2/Research | Found Fusion Bomb Launcher 23160 | -2/Research | Repaired Hvy. Mass Driver 23220 | -2/Research | Repaired Centrium Medium Armor Plating 23442 | -2/Research | Fabricated Quantum Reactor (x2) 23443 | -2/Research | Discovered new exit (range 9) 23593 | -2/Research | Entered Testing 23593 | -2/Testing | Accompanied by 3 allies 23619 | -2/Testing | Found Prototype Ballistic Gun 23619 | -2/Testing | Identified Hyp. Multirail 23675 | -2/Testing | Found Prototype Protection 23675 | -2/Testing | Identified SHELL Armor 23963 | -2/Testing | Identified exit to Access 24087 | -2/Testing | Scanned by Researcher 24152 | -2/Testing | Fabricated S-43 Plague (x4) 24164 | -2/Testing | Entered Access 24164 | -1/Access | Accompanied by 4 allies 24164 | -1/Access | Evolved 2 slots: Utility x2 24190 | -1/Access | Found Enh. Force Lance 24253 | -1/Access | Fabricated Y-72 Warden? 24276 | -1/Access | Identified exit to Command 24880 | -1/Access | Spotted B-99 Colossus 24983 | -1/Access | Found Prototype Hackware 24983 | -1/Access | Identified Exp. Hacking Suite 25279 | -1/Access | Warped through subspace 25414 | -1/Access | First assault squad dispatched 25717 | -1/Access | Spotted B-99 Colossus 25717 | -1/Access | Spotted B-99 Colossus 25720 | -1/Access | Identified Sigix Terminator 25749 | -1/Access | Entered Command 26262 | -1/Command | System corruption reached 10% 26326 | -1/Command | Build established: Scavenger-Mutant 26441 | -1/Command | Found Exp. System Shield 26641 | -1/Command | Build established: Scavenger-Gunner 26995 | -1/Command | Fired Sigix Terminator 26995 | -1/Command | Destroyed Executioner 26995 | -1/Command | Destroyed Executioner 26995 | -1/Command | Destroyed B-99 Colossus 26995 | -1/Command | Destroyed Executioner 26995 | -1/Command | Destroyed Executioner 26995 | -1/Command | Destroyed Striker 26995 | -1/Command | Destroyed Striker 26995 | -1/Command | Destroyed Alpha 7 26995 | -1/Command | Destroyed Alpha 7 26999 | -1/Command | First assault squad dispatched 27004 | -1/Command | Spotted B-99 Colossus 27016 | -1/Command | Destroyed 10 combat bots 27029 | -1/Command | Destroyed B-99 Colossus 27058 | -1/Command | High security lockdown imminent 27099 | -1/Command | Lost 6 parts (2p1n2u1w) 27114 | -1/Command | Destroyed 14 combat bots 27126 | -1/Command | Discovered new exit (range 20) 27138 | -1/Command | High security lockdown engaged 27200 | -1/Command | Spotted Striker 27200 | -1/Command | Spotted Striker 27203 | -1/Command | Destroyed Striker 27223 | -1/Command | Destroyed Striker 27261 | -1/Command | Destroyed 17 combat bots 27293 | -1/Command | Spotted Investigator 27304 | -1/Command | Destroyed Investigator 27306 | -1/Command | Spotted Striker 27338 | -1/Command | Destroyed Striker 27368 | -1/Command | Destroyed 15 combat bots 27445 | -1/Command | Spotted Executioner 27449 | -1/Command | Spotted Striker 27464 | -1/Command | Spotted Executioner 27467 | -1/Command | System corruption reached 30% 27470 | -1/Command | Destroyed Striker 27473 | -1/Command | Destroyed Executioner 27482 | -1/Command | Core integrity fell below 50% 27485 | *** | Escaped! Last Messages --------------- 27477_ Penetrated by Slug. 27477_ Matter Drive destroyed. 27477_ Enh. Nova Cannon destroyed. 27480_ The unstable cave ceiling collapses. 27480_ Penetrated by Slug. 27480_ Energy Well destroyed. 27480_ Hyp. Multirail destroyed. 27480_ Slug penetrates P-80 Master. 27481_ The unstable cave ceiling collapses. 27481_ 3 Matter crushed. 27481_ Penetrated by Slug. 27482_ Destroyed Sml. Battery. 27482_ Destroyed Gamma Rifle. 27484_ The unstable cave ceiling collapses. 27484_ Slug penetrates Executioner. 27484_ Penetrated by Slug. 27484_ Enh. Nova Cannon destroyed. 27484_ Dropped Huge Storage Unit. 27485_ The unstable cave ceiling collapses. 27485_ Slammed into G-73 Enforcer. Map ----- +----------------------------------------------------+ | ??????# ##### # # % % !!! #??# | | ????????"" ==##"####+### !! #### | | ??????? T %% # # ! " | | ??????# ### # # ## # # | | ???????#######+" # #### # # # | | ???????# " # # " # ! # | | ???????# "# " " % " | | ???????+ " ;;;""""""" % "= | | ???????# " ;;; ;;;;;; " | | ???????# " # ;;; " % " | | ?????#?# ;;; ; # | | ?????# # ;; ; # | | ????##+" ;;; ; + | | ???? ;;# ; ###### | | ??? ;;; ; "#???### | | ??] ;; ; "#?????? | | ?? ] ## % ;;; ;;;;; ;;;"####??? | | ?? % %% % %## #% = ;;;;; #??? | | ?? # [ " % #% * ;;;;; #??? | | ???"" % # % ! ;;; #??? | | ???" % % ;;; #??? | | ???#"" [ # m ;;; #??? | | ???# " ! g ;;; #??? | | ????# ## # # gp%h ;;; #??? | | ????# # # m h%g" ;;; #??? | | ????# # ### pi%l@ ;;; #??? | | ?????# # ## p !!/% ;;; #??? | | ?????# # ; E ! ;;; #??? | | ??# ;; g % ;;; #??? | | ??# ;; ;;;;;;;;;;;#####??? | | ??# ! ;; ;; #??????? | | ??? ! ; ;;;;;;;;;;;;;;;; ##??????? | | ??? ; ;;;;;;;;;;;;;;;; #???????? | | ??? ; #???????? | | ???? ! ; ##???????? | | ???? ; #????????? | | ????? " ; ##????????? | | ????? """ ; ###?????????? | | ????? ? ; ###???????????? | | ?????????? ## # #?????????????? | | ?????????######?# # #####?????????????? | | ????????????????####### ######?????????????????? | | ???????????????????????# ???????????????????????? | | | | | | | | | | | | | | | +----------------------------------------------------+ Best States ------------- Heat Dissipation 110 Energy Generation 45 Energy Capacity 950 Matter Stores 300 Matter Capacity 300 Sight Range 20 Terrain Scan Density 10 Cloak Strength 4 Additional Mass Support 20 EM Shielding 4 Corruption Block 20 Armor Coverage 2250 Resistance: KI 30 Resistance: TH 30 Resistance: EM 15 Propulsion Shielding 33 Weapon Shielding 66 Phase Shifting 15 Evasion (%) 55 Targeting Accuracy 8 Target Analysis 8 Core Analysis 6 Armor Integrity Analysis 40 Recoil Reduction 8 Energy Filtering 50 Offensive Hacking 16 Relay Coupler Types 4 Relay Coupler Value 78 Authchip Count 3 Item Schematics ----------------- Hcp. Storage Unit | -10/Materials | Hacked Huge Storage Unit | -7/Factory | Scanalyzed Arm. Huge Wheel | -7/Factory | Scanalyzed Hvy. Neutron Cannon | -7/Factory | Scanalyzed Remote Datajack | -7/Factory | Scanalyzed Matter Filter | -7/Zion | Archive Adv. Melee Analysis Suite | -7/Zion | Archive Component Analysis Suite | -7/Zion | Archive Imp. Hacking Suite | -7/Zion | Archive Mak. Salvage Targeting Computer | -7/Zion | Archive Hvy. Plasma Cannon | -7/Zion | Archive Hvy. Rocket Launcher | -7/Zion | Archive Imp. Component Analysis Suite | -7/Zion | Archive Recoil Nullifier | -7/Zion | Archive Force Booster | -7/Zion | Archive Hvy. Flak Cannon | -7/Zion | Archive Focal Shield | -7/Zion | Archive Power Maul | -7/Zion | Archive Mak. Leg | -7/Zion | Archive Mak. Transmission Jammer | -7/Zion | Archive Assault Drone Bay | -5/Zhirov | Free Exp. Heat Sink | -5/Zhirov | Free Exp. Optical Array | -5/Zhirov | Free Imp. Arc Thrower | -5/Zhirov | Free Biometal Heavy Treads | -3/Research | Hacked Imp. Diametric Drive | -3/Quarantine | Archive Com. Mass Driver | -3/Quarantine | Archive Exp. Cooling System | -2/Testing | Archive Robot Schematics ------------------ K-01 Serf | -7/Zion | Archive B-48 Gladiator | -7/Zion | Archive T-07 Excavator | -7/Zion | Archive H-77 Assassin | -7/Zion | Archive Y-72 Warden | -3/Quarantine | Hacked G-73 Enforcer | -2/Testing | Archive Fabricated ------------ H-77 Assassin | x2 | -5/Factory | Authchip H-77 Assassin | x2 | -3/Research | Authchip H-77 Assassin | x2 | -3/Research | Authchip Adv. Heavy Siege Treads | x2 | -3/Research | Preloaded Quantum Reactor | x2 | -2/Research | Preloaded S-43 Plague | x4 | -2/Testing | Preloaded Y-72 Warden | x2 | -1/Access | Authchip Alien Tech Used ----------------- Integrated Dissipator Matter Drive Transdimensional Reconstructor Sigix Terminator Achievements -------------- None Challenges ------------ None Game ------ Seed AutogunEnergyStripper Manual? 0 Play Time 03:30:30 Cumulative 1039.8 hours Start 2022.02.12 @ 08:59:21 End 2022.02.12 @ 18:37:29 Sessions 9 Manual Loads 0 Difficulty Rogue Special Mode None Game No. 720 Rogue 716 Adventurer 4 Explorer 0 Win Type 0 Total 112 Types 86/9/7/4/2/0/0/2/2 Lore% 94 Gallery% 96 Achievement% 96 Wizard Run 0 Options --------- ASCII 0 Keyboard 1 Movement Vi Keybinds 0 Fullscreen 0 Font 16/Terminus Map View 76x50 Tactical HUD 1 Map Filters NONE Filters NONE Steam 1 RUN: ef7bba74-ece5-459b-b220-bec1b4ad2191